{"text_format":"1","workbook":"xlsx","n_sheets":2,"sheets":["MENU","Unidades do Sipac"],"not_rendered":{"charts":0,"images":0,"macros":1,"external_links":0,"defined_names":0,"comments":1,"pivot_tables":0},"unopened":[],"bounds":{"document_bytes":16777216,"sheet_cells":100000,"rows_first":2000,"rows_last":500,"rows_between":2000,"halvings":0,"cell_chars":16384,"cell_head_chars":4096},"cells_cut":0,"cells_raw":0,"read":"whole","date_system":"1900"}

{"sheet":"MENU","index":0,"n_rows":40,"n_cols":3,"rows_kept":40,"cut":false,"hidden":false,"merged":[[39,0,39,1],[0,0,0,2]]}
["SOLICITAÇÃO PARA TROCA DE REFIL (ALMOFADA) DO CARIMBO"]
["Data:","2017-10-09"]
["Código da Unidade Organizacional:"]
["Unidade Organizacional:",{"$f":"VLOOKUP(MENU!B3,'Unidades do Sipac'!A2:B902,2,)","v":{"$error":"#N/A"}}]
["Nome do Solicitante:"]
["Telefone:"]
["E-mail:"]
[]
["ITEM","ESPECIFICAÇÃO TROCA DE REFIL (ALMOFADA)","QUANTIDADE"]
[3,"Carimbo Retangular 10mm x 27mm."]
[6,"Carimbo Retangular 10mm x 69mm."]
[9,"Carimbo Retangular 14mm x 38mm."]
[12,"Carimbo Retangular 15mm x 75mm."]
[15,"Carimbo Retangular 18mm x 47mm."]
[18,"Carimbo Retangular 23mm x 59mm."]
[21,"Carimbo Retangular 25mm x 82mm."]
[24,"Carimbo Retangular 30mm x 50mm."]
[27,"Carimbo Retangular 30mm x 69mm."]
[30,"Carimbo Retangular 37mm x 76mm."]
[33,"Carimbo Retangular 40mm x 60mm."]
[36,"Carimbo Quadrado  12mm x 12mm."]
[39,"Carimbo Quadrado  17mm x 17mm."]
[42,"Carimbo Quadrado  25mm x 25mm."]
[45,"Carimbo Quadrado  30mm x 30mm."]
[48,"Carimbo Quadrado  43mm x 43mm."]
[51,"Carimbo Redondo Diâmetro 12mm."]
[54,"Carimbo Redondo Diâmetro 17mm."]
[57,"Carimbo Redondo Diâmetro 24mm."]
[60,"Carimbo Redondo Diâmetro 30mm."]
[63,"Carimbo Redondo Diâmetro 40mm."]
[66,"Carimbo Redondo Diâmetro 45mm."]
[69,"Carimbo Datador Retangular 45mm x 60mm."]
[72,"Carimbo Datador Quadrado 31mm x 31mm."]
[75,"Carimbo Datador Quadrado 43mm x 43mm."]
[78,"Carimbo Datador Redondo Diâmetro 30mm."]
[81,"Carimbo Datador Redondo Diâmetro 40mm."]
[84,"Carimbo Datador Redondo Diâmetro 45mm."]
[87,"Carimbo Datador Redondo Diâmetro 50mm."]
[90,"Carimbo Numerador 6 Digitos"]
["TOTAL DE TROCA DE REFIL (ALMOFADA)->",null,{"$f":"SUM(C10:C39)","v":0}]

{"sheet":"Unidades do Sipac","index":1,"n_rows":902,"n_cols":3,"rows_kept":902,"cut":false,"hidden":true,"merged":[]}
["CÓDIGO ","NOME UNIDADE GESTORA","Mesclado"]
[1100,"UNIVERSIDADE FEDERAL DE LAVRAS - REITORIA",{"$f":"CONCATENATE(A2,\"-\",B2)","v":"1100-UNIVERSIDADE FEDERAL DE LAVRAS - REITORIA"}]
[110001,"DEPARTAMENTO DE DIREITO",{"$f":"CONCATENATE(A3,\"-\",B3)","v":"110001-DEPARTAMENTO DE DIREITO"}]
[110003,"CONSELHO UNIVERSITÁRIO","110003-CONSELHO UNIVERSITÁRIO"]
[11000301,"CÂMARA DE ASSUNTOS ACADÊMICOS - CUNI","11000301-CÂMARA DE ASSUNTOS ACADÊMICOS - CUNI"]
[11000302,"CÂMARA DE ENSINO DE PÓS-GRADUAÇÃO - CUNI","11000302-CÂMARA DE ENSINO DE PÓS-GRADUAÇÃO - CUNI"]
[11000303,"CÂMARA DE ENSINO DE GRADUAÇÃO - CUNI","11000303-CÂMARA DE ENSINO DE GRADUAÇÃO - CUNI"]
[11000304,"CÂMARA DE PESQUISA E EXTENSÃO -CUNI","11000304-CÂMARA DE PESQUISA E EXTENSÃO -CUNI"]
[11000305,"CÂMARA DE LEGISLAÇÃO - CUNI","11000305-CÂMARA DE LEGISLAÇÃO - CUNI"]
[110004,"CONSELHO DE ENSINO, PESQUISA E EXTENSÃO","110004-CONSELHO DE ENSINO, PESQUISA E EXTENSÃO"]
[11000401,"CÂMARA DE ASSUNTOS ACADÊMICOS - CEPE","11000401-CÂMARA DE ASSUNTOS ACADÊMICOS - CEPE"]
[11000402,"CÂMARA DE ENSINO DE PÓS-GRADUAÇÃO - CEPE","11000402-CÂMARA DE ENSINO DE PÓS-GRADUAÇÃO - CEPE"]
[11000403,"CÂMARA DE ENSINO DE GRADUAÇÃO - CEPE","11000403-CÂMARA DE ENSINO DE GRADUAÇÃO - CEPE"]
[11000404,"CÂMARA DE PESQUISA E EXTENSÃO - CEPE","11000404-CÂMARA DE PESQUISA E EXTENSÃO - CEPE"]
[11000405,"CÂMARA DE LEGISLAÇÃO - CEPE","11000405-CÂMARA DE LEGISLAÇÃO - CEPE"]
[11000406,"COMISSÃO DE VAGAS - CEPE","11000406-COMISSÃO DE VAGAS - CEPE"]
[110005,"CONSELHO DE CURADORES","110005-CONSELHO DE CURADORES"]
[110006,"ASSESSORIA ADMINISTRATIVA DA REITORIA","110006-ASSESSORIA ADMINISTRATIVA DA REITORIA"]
[110007,"ASSESSORIA ESPECIAL DA REITORIA EM BRASÍLIA","110007-ASSESSORIA ESPECIAL DA REITORIA EM BRASÍLIA"]
[110008,"ASSER ASSUNTOS DE PARCERIAS","110008-ASSER ASSUNTOS DE PARCERIAS"]
[110010,"ASSESSORIA DO REITOR PARA ASSUNTOS ESTRATÉGICOS E ANÁLISE","110010-ASSESSORIA DO REITOR PARA ASSUNTOS ESTRATÉGICOS E ANÁLISE"]
[110011,"ASSESSORIA PARA INDICADORES INSTITUCIONAIS","110011-ASSESSORIA PARA INDICADORES INSTITUCIONAIS"]
[110012,"ASSESSORIA DE INOVAÇÃO E EMPREENDEDORISMO/REITORIA","110012-ASSESSORIA DE INOVAÇÃO E EMPREENDEDORISMO/REITORIA"]
[110013,"COMISSÃO PRÓPRIA DE AVALIAÇÃO","110013-COMISSÃO PRÓPRIA DE AVALIAÇÃO"]
[110014,"COMISSÃO DE ÉTICA","110014-COMISSÃO DE ÉTICA"]
[110015,"OUVIDORIA/REITORIA","110015-OUVIDORIA/REITORIA"]
[110016,"COMISSÃO INTERNA DE SUPERVISÃO DOS TÉCNICOS ADMINISTRATIVOS","110016-COMISSÃO INTERNA DE SUPERVISÃO DOS TÉCNICOS ADMINISTRATIVOS"]
[110017,"SECRETARIA ADMINISTRATIVA - REITORIA","110017-SECRETARIA ADMINISTRATIVA - REITORIA"]
[110018,"SERVIÇO DE INFORMAÇÃO AO CIDADÃO/REITORIA","110018-SERVIÇO DE INFORMAÇÃO AO CIDADÃO/REITORIA"]
[110019,"ASSESSORIA DO REITOR PARA DESENVOLVIMENTO ACADEMICO","110019-ASSESSORIA DO REITOR PARA DESENVOLVIMENTO ACADEMICO"]
[110020,"COMISSÃO DE IMPLANTAÇÃO DO CURSO DE MEDICINA","110020-COMISSÃO DE IMPLANTAÇÃO DO CURSO DE MEDICINA"]
[110021,"COMITÊ GESTOR DE TECNOLOGIA DA INFORMAÇÃO","110021-COMITÊ GESTOR DE TECNOLOGIA DA INFORMAÇÃO"]
[110022,"DEPARTAMENTO DE CIÊNCIAS DA SAÚDE","110022-DEPARTAMENTO DE CIÊNCIAS DA SAÚDE"]
[110023,"DEPARTAMENTO DE FÍSICA","110023-DEPARTAMENTO DE FÍSICA"]
[110024,"DEPARTAMENTO DE NUTRIÇÃO","110024-DEPARTAMENTO DE NUTRIÇÃO"]
[110025,"COMISSÃO PERMANENTE DE DESFAZIMENTO","110025-COMISSÃO PERMANENTE DE DESFAZIMENTO"]
[110026,"COMISSÃO DE SINDICÂNCIA INVESTIGATIVA - PORTARIA 914 DE 18 DE AGOSTO DE 2015","110026-COMISSÃO DE SINDICÂNCIA INVESTIGATIVA - PORTARIA 914 DE 18 DE AGOSTO DE 2015"]
[110027,"DEPARTAMENTO DE ESTATÍSTICA","110027-DEPARTAMENTO DE ESTATÍSTICA"]
[110028,"ASSESSORIA PARA RELAÇÕES INTERINSTITUCIONAIS/REITORIA","110028-ASSESSORIA PARA RELAÇÕES INTERINSTITUCIONAIS/REITORIA"]
[110029,"DEPARTAMENTO DE ESTUDOS DA LINGUAGEM","110029-DEPARTAMENTO DE ESTUDOS DA LINGUAGEM"]
[110030,"ASSESSORA DO REITOR PARA ENSINO DE GRADUACAO/REITORIA","110030-ASSESSORA DO REITOR PARA ENSINO DE GRADUACAO/REITORIA"]
[1101,"DAE","1101-DAE"]
[1102,"DA","1102-DA"]
[1103,"DB","1103-DB"]
[1104,"DCA","1104-DCA"]
[1105,"DCE","1105-DCE"]
[1106,"DCF","1106-DCF"]
[1107,"DCS","1107-DCS"]
[1108,"DE","1108-DE"]
[1109,"DIRETORIA","1109-DIRETORIA"]
["1110","GABINETE","1110-GABINETE"]
[1111,"ASSESSORIA DE CERIMONIAL","1111-ASSESSORIA DE CERIMONIAL"]
[1112,"ASSESSORIA DE PLANEJAMENTO E CONTROLE","1112-ASSESSORIA DE PLANEJAMENTO E CONTROLE"]
[1113,"DIVISAO DE MATERIAL","1113-DIVISAO DE MATERIAL"]
[1114,"DIVISAO DE PATRIMONIO","1114-DIVISAO DE PATRIMONIO"]
[1115,"DIVISAO DE COMPRAS","1115-DIVISAO DE COMPRAS"]
[1116,"PRO-REITORIA DE POS-GRADUACAO","1116-PRO-REITORIA DE POS-GRADUACAO"]
["111601","COORD PROG DE POS-GRADUAÇÃO EM ADMINISTRAÇÃO/MEST/PRPG","111601-COORD PROG DE POS-GRADUAÇÃO EM ADMINISTRAÇÃO/MEST/PRPG"]
[111602,"COOR. POS-GRAD EM AGRO/ENTOMOLOGIA/NIVEL MESTRADO","111602-COOR. POS-GRAD EM AGRO/ENTOMOLOGIA/NIVEL MESTRADO"]
[1117,"PRO-REITORIA DE PESQUISA","1117-PRO-REITORIA DE PESQUISA"]
[1118,"SECRETARIA EXECUTIVA","1118-SECRETARIA EXECUTIVA"]
[1119,"SECRETARIA ADMINISTRATIVA","1119-SECRETARIA ADMINISTRATIVA"]
[1120,"SECAO DE OBRAS","1120-SECAO DE OBRAS"]
[1121,"SECAO DE PROJETOS","1121-SECAO DE PROJETOS"]
[1122,"SECAO DE DESENHO","1122-SECAO DE DESENHO"]
["1123","SECAO DE OFICINA MECANICA","1123-SECAO DE OFICINA MECANICA"]
[1124,"SECAO DE MARCENARIA",{"$f":"CONCATENATE(A67,\"-\",B67)","v":"1124-SECAO DE MARCENARIA"}]
["1125","SECAO DE SERRARIA","1125-SECAO DE SERRARIA"]
[1126,"SECAO DE URBANISMO E PAISAGISMO","1126-SECAO DE URBANISMO E PAISAGISMO"]
[1127,"SECAO DE ZELADORIA","1127-SECAO DE ZELADORIA"]
[1128,"SECAO DE VIGILANCIA AO PATRIMONIO","1128-SECAO DE VIGILANCIA AO PATRIMONIO"]
[1129,"INATIVOS DOCENTE","1129-INATIVOS DOCENTE"]
[1130,"BIBLIOTECA CENTRAL","1130-BIBLIOTECA CENTRAL"]
[1131,"COMISSAO PERMANENTE DO VESTIBULAR","1131-COMISSAO PERMANENTE DO VESTIBULAR"]
["1132","COMISSAO PERMANENTE DE PESS DOCENTE","1132-COMISSAO PERMANENTE DE PESS DOCENTE"]
[1133,"CENTRO DE PROCESSAMENTO DE DADOS","1133-CENTRO DE PROCESSAMENTO DE DADOS"]
[1134,"DIVISAO DE DIVULGACAO E IMPRESSAO","1134-DIVISAO DE DIVULGACAO E IMPRESSAO"]
[1135,"GERENCIA DE EQUIPAMENTOS","1135-GERENCIA DE EQUIPAMENTOS"]
[1136,"CONSELHO EDITORIAL","1136-CONSELHO EDITORIAL"]
[1137,"NUCLEO DE APOIO DIDATICO PEDAGOGICO","1137-NUCLEO DE APOIO DIDATICO PEDAGOGICO"]
[1138,"CENTRO DE TREINAMENTO","1138-CENTRO DE TREINAMENTO"]
[1139,"COMISSAO PERM DE PESS TECN ADMINISTRAT","1139-COMISSAO PERM DE PESS TECN ADMINISTRAT"]
[1140,"INATIVOS ADMINISTRATIVO","1140-INATIVOS ADMINISTRATIVO"]
[1141,"DEPARTAMENTO DE ADMINISTRACAO E ECONOMIA","1141-DEPARTAMENTO DE ADMINISTRACAO E ECONOMIA"]
["1142","DEPARTAMENTO DE AGRICULTURA","1142-DEPARTAMENTO DE AGRICULTURA"]
[1143,"DEPARTAMENTO DE BIOLOGIA","1143-DEPARTAMENTO DE BIOLOGIA"]
["1144","DEPARTAMENTO DE CIENCIAS DOS ALIMENTOS","1144-DEPARTAMENTO DE CIENCIAS DOS ALIMENTOS"]
[1145,"DEPARTAMENTO DE CIENCIAS EXATAS","1145-DEPARTAMENTO DE CIENCIAS EXATAS"]
[1146,"DEPARTAMENTO DE CIENCIAS FLORESTAIS","1146-DEPARTAMENTO DE CIENCIAS FLORESTAIS"]
["1147","DEPARTAMENTO DE ENGENHARIA","1147-DEPARTAMENTO DE ENGENHARIA"]
[1148,"DEPARTAMENTO DE EDUCACAO FISICA","1148-DEPARTAMENTO DE EDUCACAO FISICA"]
[1149,"DEPARTAMENTO DE FITOSSANIDADE","1149-DEPARTAMENTO DE FITOSSANIDADE"]
[1150,"DEPARTAMENTO DE QUIMICA","1150-DEPARTAMENTO DE QUIMICA"]
[1151,"DEPARTAMENTO DE ZOOTECNIA","1151-DEPARTAMENTO DE ZOOTECNIA"]
[1152,"CONSELHO DEPARTAMENTAL","1152-CONSELHO DEPARTAMENTAL"]
[1153,"PRO-REITORIA DE GRADUACAO","1153-PRO-REITORIA DE GRADUACAO"]
[1154,"SECAO DE TRANSPORTES","1154-SECAO DE TRANSPORTES"]
[1155,"DEPARTAMENTO DE CIENCIAS DO SOLO","1155-DEPARTAMENTO DE CIENCIAS DO SOLO"]
[1156,"MUSEU BI MOREIRA","1156-MUSEU BI MOREIRA"]
[1157,"DAE","1157-DAE"]
[1158,"DA","1158-DA"]
["1159","DB","1159-DB"]
[1160,"DCA","1160-DCA"]
["1161","DCE","1161-DCE"]
[1162,"DCF","1162-DCF"]
[1163,"DCS","1163-DCS"]
[1164,"DE","1164-DE"]
[1165,"DEF","1165-DEF"]
[1166,"DF","1166-DF"]
[1167,"DQ","1167-DQ"]
["1168","DZ","1168-DZ"]
[1169,"DIRETORIA DE RECURSOS HUMANOS","1169-DIRETORIA DE RECURSOS HUMANOS"]
[1170,"DEF","1170-DEF"]
[1171,"DFP - DOCENTES","1171-DFP - DOCENTES"]
[1172,"DQ","1172-DQ"]
["1173","DZ","1173-DZ"]
[1174,"PRO-REITORIA DE EXTENSAO","1174-PRO-REITORIA DE EXTENSAO"]
[1175,"PROCURADORIA JURIDICA","1175-PROCURADORIA JURIDICA"]
[1176,"DIRETORIA DE CONTABILIDADE E FINANCEIRA","1176-DIRETORIA DE CONTABILIDADE E FINANCEIRA"]
[1177,"DIRETORIA DE REGIST.E CONTROLE ACADEMICO","1177-DIRETORIA DE REGIST.E CONTROLE ACADEMICO"]
[1178,"PRO-REITORIA ASS.ESTUD.,COMUN.E CULTURAL","1178-PRO-REITORIA ASS.ESTUD.,COMUN.E CULTURAL"]
[1179,"DIRETORIA DE MATERIAL E SERVICOS GERAIS","1179-DIRETORIA DE MATERIAL E SERVICOS GERAIS"]
[1180,"DIVISAO DE MATERIAL","1180-DIVISAO DE MATERIAL"]
[1181,"DIVISAO DE PATRIMONIO","1181-DIVISAO DE PATRIMONIO"]
[1182,"DIVISAO DE COMPRAS","1182-DIVISAO DE COMPRAS"]
["1183","DIRETORIA DE PRODUCAO","1183-DIRETORIA DE PRODUCAO"]
[1184,"PREFEITURA DO CAMPUS","1184-PREFEITURA DO CAMPUS"]
[1185,"SECRETARIA ADMINISTRATIVA","1185-SECRETARIA ADMINISTRATIVA"]
[1186,"GERENCIA DE EQUIPAMENTOS","1186-GERENCIA DE EQUIPAMENTOS"]
[1187,"SECAO DE OBRAS","1187-SECAO DE OBRAS"]
[1188,"SECAO DE PROJETOS",{"$f":"CONCATENATE(A131,\"-\",B131)","v":"1188-SECAO DE PROJETOS"}]
[1189,"SECAO DE DESENHO","1189-SECAO DE DESENHO"]
[1190,"SECAO DE TRANSPORTES","1190-SECAO DE TRANSPORTES"]
[1191,"SECAO DE OFICINA MECANICA","1191-SECAO DE OFICINA MECANICA"]
[1192,"SECAO DE MARCENARIA","1192-SECAO DE MARCENARIA"]
[1193,"SECAO DE SERRARIA","1193-SECAO DE SERRARIA"]
[1194,"SECAO DE URBANISMO E PAISAGISMO","1194-SECAO DE URBANISMO E PAISAGISMO"]
[1195,"SECAO DE ZELADORIA","1195-SECAO DE ZELADORIA"]
[1196,"SECAO DE VIGILANCIA AO PATRIMONIO","1196-SECAO DE VIGILANCIA AO PATRIMONIO"]
[1197,"BIBLIOTECA CENTRAL","1197-BIBLIOTECA CENTRAL"]
[1198,"COMISSAO PERMANENTE DE PROC. SELETIVO","1198-COMISSAO PERMANENTE DE PROC. SELETIVO"]
["1199","COMISSAO PERMANENTE DE PESSOAL DOCENTE","1199-COMISSAO PERMANENTE DE PESSOAL DOCENTE"]
[1200,"CENTRO DE INFORMATICA","1200-CENTRO DE INFORMATICA"]
[1201,"DIVISAO DE DIVULGACAO E IMPRESSAO","1201-DIVISAO DE DIVULGACAO E IMPRESSAO"]
[1202,"MUSEU BI MOREIRA","1202-MUSEU BI MOREIRA"]
[1203,"NUCLEO DE APOIO DIDATICO PEDAGOGICO","1203-NUCLEO DE APOIO DIDATICO PEDAGOGICO"]
[1204,"CENTRO DE TREINAMENTO","1204-CENTRO DE TREINAMENTO"]
["1205","COMISSAO PERM. DE PESSOAL TEC. ADMINIST.","1205-COMISSAO PERM. DE PESSOAL TEC. ADMINIST."]
[1206,"DEPTO. DE ADMINISTRACAO E ECONOMIA","1206-DEPTO. DE ADMINISTRACAO E ECONOMIA"]
[1207,"DEPARTAMENTO DE AGRICULTURA","1207-DEPARTAMENTO DE AGRICULTURA"]
[1208,"DEPARTAMENTO DE BIOLOGIA","1208-DEPARTAMENTO DE BIOLOGIA"]
[1209,"DEPARTAMENTO DE CIENCIAS DOS ALIMENTOS","1209-DEPARTAMENTO DE CIENCIAS DOS ALIMENTOS"]
[1210,"DEPARTAMENTO DE CIENCIAS EXATAS","1210-DEPARTAMENTO DE CIENCIAS EXATAS"]
[1211,"DEPARTAMENTO DE CIENCIAS FLORESTAIS","1211-DEPARTAMENTO DE CIENCIAS FLORESTAIS"]
[1212,"DEPARTAMENTO DE CIENCIAS DO SOLO","1212-DEPARTAMENTO DE CIENCIAS DO SOLO"]
["1213","DEPARTAMENTO DE ENGENHARIA","1213-DEPARTAMENTO DE ENGENHARIA"]
[1214,"DEPARTAMENTO DE EDUCACAO FISICA","1214-DEPARTAMENTO DE EDUCACAO FISICA"]
[1215,"DEPTO DE FITOPATOLOGIA-TEC.ADMINISTRATIV","1215-DEPTO DE FITOPATOLOGIA-TEC.ADMINISTRATIV"]
[1216,"DEPARTAMENTO DE QUIMICA","1216-DEPARTAMENTO DE QUIMICA"]
[1217,"DEPARTAMENTO DE ZOOTECNIA","1217-DEPARTAMENTO DE ZOOTECNIA"]
[1218,"PENSIONISTAS DOCENTE","1218-PENSIONISTAS DOCENTE"]
[1219,"PENSIONISTAS ADMINISTRATIVO","1219-PENSIONISTAS ADMINISTRATIVO"]
["1220","DOCENTES","1220-DOCENTES"]
[1221,"DEPARTAMENTO DE EDUCACAO","1221-DEPARTAMENTO DE EDUCACAO"]
[1222,"DEPTO DE MEDICINA VETERINARIA","1222-DEPTO DE MEDICINA VETERINARIA"]
[1223,"DOCENTES","1223-DOCENTES"]
[1224,"EDITORA UFLA","1224-EDITORA UFLA"]
[1225,"DEPARTAMENTO DE ENTOMOLOGIA","1225-DEPARTAMENTO DE ENTOMOLOGIA"]
[1226,"DEPARTAMENTO DE ENTOMOLOGIA -TEC.ADMINIS","1226-DEPARTAMENTO DE ENTOMOLOGIA -TEC.ADMINIS"]
[1227,"DEPARTAMENTO DE EDUCACAO","1227-DEPARTAMENTO DE EDUCACAO"]
["1228","DEPARTAMENTO DE MEDICINA VETERINARIA","1228-DEPARTAMENTO DE MEDICINA VETERINARIA"]
[122801,"HOSPITAL VETERINÁRIO","122801-HOSPITAL VETERINÁRIO"]
[1229,"DEPARTAMENTO DE CIENCIA DA COMPUTACAO","1229-DEPARTAMENTO DE CIENCIA DA COMPUTACAO"]
[1230,"DEPART. DE CIENCIA DA COMPUTACAO","1230-DEPART. DE CIENCIA DA COMPUTACAO"]
[1231,"PRO-REITORIA DE ADMINISTRACAO","1231-PRO-REITORIA DE ADMINISTRACAO"]
[1232,"VICE REITORIA","1232-VICE REITORIA"]
["123201","COMISSÃO DE SINDICÂNCIA INVESTIGATIVA - PORTARIA 914","123201-COMISSÃO DE SINDICÂNCIA INVESTIGATIVA - PORTARIA 914"]
[1233,"GABINETE","1233-GABINETE"]
[123301,"COORDENADORIA DE CERIMONIAL","123301-COORDENADORIA DE CERIMONIAL"]
[123302,"SETOR DE PROTOCOLO","123302-SETOR DE PROTOCOLO"]
[123303,"ASSESSORIA DE COMUNICACAO SOCIAL","123303-ASSESSORIA DE COMUNICACAO SOCIAL"]
[123304,"ASSES DE RELACOES PUBLICAS","123304-ASSES DE RELACOES PUBLICAS"]
[123305,"DIRETORIA DE COMUNICACAO/GABINETE","123305-DIRETORIA DE COMUNICACAO/GABINETE"]
[12330501,"COORDENADORIA DE CRIACAO E PUBLICACAO/GABINETE","12330501-COORDENADORIA DE CRIACAO E PUBLICACAO/GABINETE"]
[1234,"PRO REITORIA DE PLANEJAMENTO E GESTAO","1234-PRO REITORIA DE PLANEJAMENTO E GESTAO"]
[123401,"ASSESSORIA DA PRO REITORIA ADMINISTRACAO","123401-ASSESSORIA DA PRO REITORIA ADMINISTRACAO"]
[123402,"SUPERINTENDÊNCIA DE GESTAO/PROPLAG","123402-SUPERINTENDÊNCIA DE GESTAO/PROPLAG"]
[12340201,"GRAFICA UNIVERSITARIA/SG/PROPLAG","12340201-GRAFICA UNIVERSITARIA/SG/PROPLAG"]
[12340202,"DIRETORIA DE GESTAO DE MATERIAIS","12340202-DIRETORIA DE GESTAO DE MATERIAIS"]
[1234020201,"COORD COMPRAS ALIENACAO E VENDAS/DGM","1234020201-COORD COMPRAS ALIENACAO E VENDAS/DGM"]
[123402020101,"SETOR DE LICITAÇÃO","123402020101-SETOR DE LICITAÇÃO"]
[123402020102,"SETOR DE CADASTRO - DGM","123402020102-SETOR DE CADASTRO - DGM"]
[123402020103,"SETOR DE IMPORTAÇÃO - DGM","123402020103-SETOR DE IMPORTAÇÃO - DGM"]
[123402020104,"ASSESSORIA DE PREGOEIROS - DGM","123402020104-ASSESSORIA DE PREGOEIROS - DGM"]
[1234020202,"COORD DE MATERIAIS E PATRIMONIO/CMP",{"$f":"CONCATENATE(A195,\"-\",B195)","v":"1234020202-COORD DE MATERIAIS E PATRIMONIO/CMP"}]
[123402020201,"SETOR DE MATERIAL DE CONSUMO/CMP/DGM","123402020201-SETOR DE MATERIAL DE CONSUMO/CMP/DGM"]
[123402020202,"SECRETARIA - CMP - DGM","123402020202-SECRETARIA - CMP - DGM"]
[123402020203,"SETOR DE CONTROLE CONTABIL - CMP - DGM","123402020203-SETOR DE CONTROLE CONTABIL - CMP - DGM"]
[123402020205,"SETOR DE MATERIAL PERMANENTE E EQUIPAMENTOS/CMP/DGM","123402020205-SETOR DE MATERIAL PERMANENTE E EQUIPAMENTOS/CMP/DGM"]
[1234020203,"DIVISAO DE PATRIMONIO","1234020203-DIVISAO DE PATRIMONIO"]
["1234020204","DIVISAO DE PREGAO","1234020204-DIVISAO DE PREGAO"]
["1234020205","SETOR DE PROCESSAMENTO DADOS/DGM","1234020205-SETOR DE PROCESSAMENTO DADOS/DGM"]
["1234020206","SECRETARIA ADMINISTRATIVA - DGM","1234020206-SECRETARIA ADMINISTRATIVA - DGM"]
["12340203","PREFEITURA UNIVERSITARIA","12340203-PREFEITURA UNIVERSITARIA"]
["1234020301","COORD DE VIGILANCIA AO PATRIMONIO/PFU","1234020301-COORD DE VIGILANCIA AO PATRIMONIO/PFU"]
["1234020302","SETOR DE PINTURA/PFU","1234020302-SETOR DE PINTURA/PFU"]
["1234020303","COORDENADORIA DE SANEAMENTO/PFU","1234020303-COORDENADORIA DE SANEAMENTO/PFU"]
["1234020304","SETOR DE MARCENARIA/PFU","1234020304-SETOR DE MARCENARIA/PFU"]
["1234020305","COORD DE PESSOAL E ZELADORIA/PFU","1234020305-COORD DE PESSOAL E ZELADORIA/PFU"]
["1234020306","SETOR DE ELETRICIDADE","1234020306-SETOR DE ELETRICIDADE"]
["1234020307","SETOR DE ORC CONT DE MAT FISC OBRAS/PFU","1234020307-SETOR DE ORC CONT DE MAT FISC OBRAS/PFU"]
["1234020308","SETOR DE PLANEJAMENTO E PROJETOS/PFU","1234020308-SETOR DE PLANEJAMENTO E PROJETOS/PFU"]
["1234020309","SETOR DE HIDRAULICA/PFU","1234020309-SETOR DE HIDRAULICA/PFU"]
["1234020310","COORD DE URBANIZACAO E PAISAGISMO/PFU","1234020310-COORD DE URBANIZACAO E PAISAGISMO/PFU"]
["1234020311","GERENCIA DE EQUIPAMENTOS","1234020311-GERENCIA DE EQUIPAMENTOS"]
["1234020313","SETOR DE CONTR OBRAS SERVICOS/PFU","1234020313-SETOR DE CONTR OBRAS SERVICOS/PFU"]
["1234020314","MARCENARIA/PFU","1234020314-MARCENARIA/PFU"]
["1234020315","PINTURA/PFU","1234020315-PINTURA/PFU"]
["1234020316","ZELADORIA/PFU","1234020316-ZELADORIA/PFU"]
["1234020317","GERÊNCIA DE EQUIPAMENTOS/PFU","1234020317-GERÊNCIA DE EQUIPAMENTOS/PFU"]
["1234020318","SERVIÇO ORGANICO DE SEGURANÇA PATRIMONIAL/PFU","1234020318-SERVIÇO ORGANICO DE SEGURANÇA PATRIMONIAL/PFU"]
["1234020319","HIDRÁULICA/PFU","1234020319-HIDRÁULICA/PFU"]
["1234020320","RECICLAGEM/PFU","1234020320-RECICLAGEM/PFU"]
["1234020321","ELETRICIDADE/PFU","1234020321-ELETRICIDADE/PFU"]
["1234020322","TAPEÇARIA/PFU","1234020322-TAPEÇARIA/PFU"]
["1234020323","CARPINTARIA/PFU","1234020323-CARPINTARIA/PFU"]
["1234020324","SERRALHERIA/PFU","1234020324-SERRALHERIA/PFU"]
["1234020325","SANEAMENTO/PFU","1234020325-SANEAMENTO/PFU"]
["1234020326","URBANIZAÇÃO E PAISAGISMO/PFU","1234020326-URBANIZAÇÃO E PAISAGISMO/PFU"]
["1234020327","FAZENDA PALMITAL/PFU","1234020327-FAZENDA PALMITAL/PFU"]
["1234020328","VICE-DIRETORIA DA PREFEITURA UNIVERSITARIA/SUP DE GESTAO/PROPLAG","1234020328-VICE-DIRETORIA DA PREFEITURA UNIVERSITARIA/SUP DE GESTAO/PROPLAG"]
["1234020330","DIRETORIA TRANSPORTES E MAQUINAS/PFU/PROPLAG","1234020330-DIRETORIA TRANSPORTES E MAQUINAS/PFU/PROPLAG"]
["123402033001","SETOR DE OFICINA MECANICA","123402033001-SETOR DE OFICINA MECANICA"]
["1234020331","COORDENADORIA DE LOGISTICA ACADEMICA E MANUTENCAO DE EQUIPAMENTOS/PFU/PROPLAG","1234020331-COORDENADORIA DE LOGISTICA ACADEMICA E MANUTENCAO DE EQUIPAMENTOS/PFU/PROPLAG"]
["1234020332","DIRETORIA DE MEIO AMBIENTE/SP/PROPLAG","1234020332-DIRETORIA DE MEIO AMBIENTE/SP/PROPLAG"]
["1234020333","SECRETARIA ADMINISTRATIVA/PFU","1234020333-SECRETARIA ADMINISTRATIVA/PFU"]
["1234020401","VICE-DIRETORIA/DTM/SG","1234020401-VICE-DIRETORIA/DTM/SG"]
["1234020403","COORDENADORIA DE MANUTENÇÃO E OFICINA MECANICA/DTM/SG","1234020403-COORDENADORIA DE MANUTENÇÃO E OFICINA MECANICA/DTM/SG"]
["1234020404","SECRETARIA ADMINISTRATIVA/DTM/SG","1234020404-SECRETARIA ADMINISTRATIVA/DTM/SG"]
["12340205","DIRETORIA DE AREAS EXPERIMENTAIS/SG","12340205-DIRETORIA DE AREAS EXPERIMENTAIS/SG"]
["12340206","COORD GESTAO DE CONTRATOS/CC/SG/PROPLAG","12340206-COORD GESTAO DE CONTRATOS/CC/SG/PROPLAG"]
["1234020601","COORDENADORIA CONTABIL/SG/PROPLAG","1234020601-COORDENADORIA CONTABIL/SG/PROPLAG"]
["12340207","COORDENADORIA DE GESTÃO DE DOCUMENTOS ARQUIVÍSTICOS","12340207-COORDENADORIA DE GESTÃO DE DOCUMENTOS ARQUIVÍSTICOS"]
["1234020701","PROTOCOLO","1234020701-PROTOCOLO"]
["12340208","DIRETORIA DE MATERIAIS E PATRIMONIO/SG/PROPLAG","12340208-DIRETORIA DE MATERIAIS E PATRIMONIO/SG/PROPLAG"]
["1234020801","SETOR DE RECOLHIMENTO E REDISTRIBUIÇÃO/DGM","1234020801-SETOR DE RECOLHIMENTO E REDISTRIBUIÇÃO/DGM"]
["1234020802","SETOR DE RESERVA TÉCNICA","1234020802-SETOR DE RESERVA TÉCNICA"]
["1234020803","SETOR DE MATERIAL DE OBRAS E INSTALAÇÕES/CMP/DGM","1234020803-SETOR DE MATERIAL DE OBRAS E INSTALAÇÕES/CMP/DGM"]
["12340209","DIRETORIA DE MATERIAIS E PATRIMONIO/SG/PROPLAG","12340209-DIRETORIA DE MATERIAIS E PATRIMONIO/SG/PROPLAG"]
["12340210","SETOR DE PROTOCOLO/PROPLAG","12340210-SETOR DE PROTOCOLO/PROPLAG"]
["123403","SUPERINT DE PLANEJAMENTO/PROPLAG","123403-SUPERINT DE PLANEJAMENTO/PROPLAG"]
["12340301","DIRETORIA DE CONT ORCAMENTO E FINANCAS","12340301-DIRETORIA DE CONT ORCAMENTO E FINANCAS"]
["1234030101","COORDENADORIA DE ORCAMENTO/DCOF","1234030101-COORDENADORIA DE ORCAMENTO/DCOF"]
["1234030102","SETOR DE EXECUCAO ORCAMENTARIA/DCOF","1234030102-SETOR DE EXECUCAO ORCAMENTARIA/DCOF"]
["1234030103","SETOR DE FINANCAS/DCOF","1234030103-SETOR DE FINANCAS/DCOF"]
["1234030104","COORDENADORIA DE CONTABILIDADE/DCOF","1234030104-COORDENADORIA DE CONTABILIDADE/DCOF"]
["1234030105","VICE-DIRETORIA DE CONTABILIDADE, ORÇAMENTO E FINANÇAS/SP/PROPLAG","1234030105-VICE-DIRETORIA DE CONTABILIDADE, ORÇAMENTO E FINANÇAS/SP/PROPLAG"]
["12340302","DIRETORIA DE GESTAO E TEC DA INFORMACAO","12340302-DIRETORIA DE GESTAO E TEC DA INFORMACAO"]
["1234030201","COORD ADM DE REDES E SISTEMAS/DGTI",{"$f":"CONCATENATE(A259,\"-\",B259)","v":"1234030201-COORD ADM DE REDES E SISTEMAS/DGTI"}]
["1234030202","COORD INFRA REDES E TELEC / DGTI","1234030202-COORD INFRA REDES E TELEC / DGTI"]
["1234030203","COORD SUPORTE E MANUTENCAO/DGTI","1234030203-COORD SUPORTE E MANUTENCAO/DGTI"]
["123403020301","SETOR DE ATENDIMENTO","123403020301-SETOR DE ATENDIMENTO"]
["1234030204","COORD DE SEGURANCA DA INFORMACAO/DGTI","1234030204-COORD DE SEGURANCA DA INFORMACAO/DGTI"]
["1234030205","COORD DE SISTEMAS DE INFORMACAO/DGTI","1234030205-COORD DE SISTEMAS DE INFORMACAO/DGTI"]
["12340303","DIRETORIA DE CONTRATOS E CONVENIOS","12340303-DIRETORIA DE CONTRATOS E CONVENIOS"]
["1234030301","ASSESSORIA DICON","1234030301-ASSESSORIA DICON"]
["1234030302","SECRETARIA ADMINISTRATIVA - DICON","1234030302-SECRETARIA ADMINISTRATIVA - DICON"]
["1234030303","ASSESSORIA - DICON","1234030303-ASSESSORIA - DICON"]
["1234030304","SETOR DE TRÂMITE PROCESSUAL - DICON","1234030304-SETOR DE TRÂMITE PROCESSUAL - DICON"]
["1234030305","SETOR DE PROJETOS - DICON","1234030305-SETOR DE PROJETOS - DICON"]
["1234030401","VICE-DIRETORIA - DMA","1234030401-VICE-DIRETORIA - DMA"]
["1234030402","SECRETARIA ADMINISTRATIVA - DMA","1234030402-SECRETARIA ADMINISTRATIVA - DMA"]
["1234030403","COORDENADORIA DE RECURSOS NATURAIS","1234030403-COORDENADORIA DE RECURSOS NATURAIS"]
["1234030404","COORDENADORIA DE SANEAMENTO","1234030404-COORDENADORIA DE SANEAMENTO"]
["123403040401","SETOR DE TRATAMENTO DE AGUA","123403040401-SETOR DE TRATAMENTO DE AGUA"]
["123403040402","SETOR DE TRATAMENTO DE ESGOTO","123403040402-SETOR DE TRATAMENTO DE ESGOTO"]
["1234030405","COORDENADORIA DE RESIDUOS","1234030405-COORDENADORIA DE RESIDUOS"]
["123403040501","SETOR DE RESIDUOS QUIMICOS","123403040501-SETOR DE RESIDUOS QUIMICOS"]
["123403040502","SETOR DE RECICLAGEM","123403040502-SETOR DE RECICLAGEM"]
["123403040503","SETOR DE RESIDUOS BIOLOGICOS","123403040503-SETOR DE RESIDUOS BIOLOGICOS"]
["1234030406","COORDENADORIA DE PLANEJAMENTO E USO RACIONAL DE ENERGIA","1234030406-COORDENADORIA DE PLANEJAMENTO E USO RACIONAL DE ENERGIA"]
["1234030407","COORDENADORIA DE PREVENÇÃO DE ENDEMIAS","1234030407-COORDENADORIA DE PREVENÇÃO DE ENDEMIAS"]
["1234030408","COORDENADORIA DE PREVENÇÃO E CONTROLE INCÊNDIOS","1234030408-COORDENADORIA DE PREVENÇÃO E CONTROLE INCÊNDIOS"]
["123404","ASSESSORIA DE PLANEJAMENTO E GESTÃO","123404-ASSESSORIA DE PLANEJAMENTO E GESTÃO"]
["123405","SECRETARIA ADMINISTRATIVA - PROPLAG","123405-SECRETARIA ADMINISTRATIVA - PROPLAG"]
["123406","PROPLAG DESCENTRALIZAÇÃO","123406-PROPLAG DESCENTRALIZAÇÃO"]
["1235","PRO REITORIA DE ASSUNTOS ESTUDANTIS E COMUNITARIOS","1235-PRO REITORIA DE ASSUNTOS ESTUDANTIS E COMUNITARIOS"]
["123501","COORDENADORIA DE MEDICINA DO TRABALHO","123501-COORDENADORIA DE MEDICINA DO TRABALHO"]
["123502","COORD DE PROGRAMAS SOCIAIS/PRAEC","123502-COORD DE PROGRAMAS SOCIAIS/PRAEC"]
["123503","COORDENADORIA DE SAUDE/PRAEC","123503-COORDENADORIA DE SAUDE/PRAEC"]
["123505","COORD DE MORADIA E ALIMENTACAO/PRAEC","123505-COORD DE MORADIA E ALIMENTACAO/PRAEC"]
["123506","COORD DE ESPORTES E LAZER/PRAEC","123506-COORD DE ESPORTES E LAZER/PRAEC"]
["123508","COORDENADORIA PARA ASSUNTOS DA DIVERSIDADE E DIFERENÇAS/PRAEC","123508-COORDENADORIA PARA ASSUNTOS DA DIVERSIDADE E DIFERENÇAS/PRAEC"]
["123509","COORDENADORIA DE MORADIA","123509-COORDENADORIA DE MORADIA"]
["123510","COORDENADORIA DE ACESSIBILIDADE/PRAEC","123510-COORDENADORIA DE ACESSIBILIDADE/PRAEC"]
["12351001","NUCLEO DE ACESSIBILIDADE/PRAEC","12351001-NUCLEO DE ACESSIBILIDADE/PRAEC"]
["12351002","PROGRAMA DE APOIO A DISCENTE COM NECESSIDADE EDUCACIONAIS ESPECIAIS/PADNEE","12351002-PROGRAMA DE APOIO A DISCENTE COM NECESSIDADE EDUCACIONAIS ESPECIAIS/PADNEE"]
["123511","COORDENADORIA DE ALIMENTACAO","123511-COORDENADORIA DE ALIMENTACAO"]
["12351101","ALMOXARIFADO DO RESTAURANTE UNIVERSITARIO","12351101-ALMOXARIFADO DO RESTAURANTE UNIVERSITARIO"]
["12351102","RESTAURANTE UNIVERSITARIO","12351102-RESTAURANTE UNIVERSITARIO"]
["123512","SECRETARIA ADMINISTRATIVA/PRAEC","123512-SECRETARIA ADMINISTRATIVA/PRAEC"]
["1236","PRO REITORIA DE EXTENSAO E CULTURA","1236-PRO REITORIA DE EXTENSAO E CULTURA"]
["123601","ASSESSORIA DA PRO REITORIA DE EXTENSAO","123601-ASSESSORIA DA PRO REITORIA DE EXTENSAO"]
["123602","COORD DESENV TEC E SOCIAL/PROEC","123602-COORD DESENV TEC E SOCIAL/PROEC"]
["123603","COORDENADORIA DE CULTURA","123603-COORDENADORIA DE CULTURA"]
["123604","COORD DE CURSOS E EVENTOS/PROEC","123604-COORD DE CURSOS E EVENTOS/PROEC"]
["123605","COORDENADORIA DE ESTAGIOS/PROEC","123605-COORDENADORIA DE ESTAGIOS/PROEC"]
["123606","COORDENADORIA DE PROGRAMAS E PROJETOS/PROEC","123606-COORDENADORIA DE PROGRAMAS E PROJETOS/PROEC"]
["123607","COORDENADORIA DE MUSEUS E PATRIMÔNIO HISTÓRICO - PROEC","123607-COORDENADORIA DE MUSEUS E PATRIMÔNIO HISTÓRICO - PROEC"]
["123608","COORDENADORIA DE CULTURA/PROEC","123608-COORDENADORIA DE CULTURA/PROEC"]
["123609","COORDENADORIA DE PROJETOS E PROGRAMAS/PROEC","123609-COORDENADORIA DE PROJETOS E PROGRAMAS/PROEC"]
["123610","COORDENADORIA DE INCUBADORA E PARQUE TECNOLÓGICO/PROEC","123610-COORDENADORIA DE INCUBADORA E PARQUE TECNOLÓGICO/PROEC"]
["1237","PRO REITORIA DE PESQUISA","1237-PRO REITORIA DE PESQUISA"]
["123701","COORDENAÇÃO DE PROGRAMAS DE INICIAÇÃO CIENTÍFICA","123701-COORDENAÇÃO DE PROGRAMAS DE INICIAÇÃO CIENTÍFICA"]
["123702","EDITORA UFLA","123702-EDITORA UFLA"]
["12370201","ASSESSORIA DA EDITORA UFLA","12370201-ASSESSORIA DA EDITORA UFLA"]
["12370202","SECRETARIA ADMINISTRATIVA - EDITORA UFLA","12370202-SECRETARIA ADMINISTRATIVA - EDITORA UFLA"]
["123703","COORDENADORIA DE PROJETOS/PRP","123703-COORDENADORIA DE PROJETOS/PRP"]
["123704","NÚCLEO DE INOVAÇÃO TECNOLÓGICA - NINTEC","123704-NÚCLEO DE INOVAÇÃO TECNOLÓGICA - NINTEC"]
["12370401","INCUBADORA DE EMPRESAS DE BASE TECNOLÓGICA - INBATEC","12370401-INCUBADORA DE EMPRESAS DE BASE TECNOLÓGICA - INBATEC"]
["123705","SECRETARIA DE COMISSÕES PERMANENTES/PRP","123705-SECRETARIA DE COMISSÕES PERMANENTES/PRP"]
["12370501","COMISSÃO INTERNA DE BIOSEGURANÇA/CIBIO","12370501-COMISSÃO INTERNA DE BIOSEGURANÇA/CIBIO"]
["12370502","COMISSÃO DE ÉTICA NO USO DE ANIMAIS/CEUA",{"$f":"CONCATENATE(A323,\"-\",B323)","v":"12370502-COMISSÃO DE ÉTICA NO USO DE ANIMAIS/CEUA"}]
["12370503","COMISSÃO DE ÉTICA EM PESQUISAS COM SERES HUMANOS/COEP","12370503-COMISSÃO DE ÉTICA EM PESQUISAS COM SERES HUMANOS/COEP"]
["123706","NÚCLEO DE INOVAÇÃO TECNOLÓGICA - PRP","123706-NÚCLEO DE INOVAÇÃO TECNOLÓGICA - PRP"]
["123707","COORDENADORIA DE SISTEMAS/PRP","123707-COORDENADORIA DE SISTEMAS/PRP"]
["123709","AGÊNCIA DE INOVAÇÃO DO CAFÉ - INOVACAFE","123709-AGÊNCIA DE INOVAÇÃO DO CAFÉ - INOVACAFE"]
["123710","FAZENDA MUQUEM/PRP","123710-FAZENDA MUQUEM/PRP"]
["1238","PRO REITORIA DE GRADUACAO","1238-PRO REITORIA DE GRADUACAO"]
["123801","COLEGIADO DE GRADUAÇÃO EM AGRONOMIA","123801-COLEGIADO DE GRADUAÇÃO EM AGRONOMIA"]
["123802","COLEGIADO DE GRADUAÇÃO EM MEDICINA VETERINÁRIA","123802-COLEGIADO DE GRADUAÇÃO EM MEDICINA VETERINÁRIA"]
["123803","COLEGIADO DE GRADUAÇÃO EM ZOOTECNIA","123803-COLEGIADO DE GRADUAÇÃO EM ZOOTECNIA"]
["123804","COLEGIADO DE GRADUAÇÃO EM ADMINISTRAÇÃO","123804-COLEGIADO DE GRADUAÇÃO EM ADMINISTRAÇÃO"]
["123805","COLEGIADO DE GRADUAÇÃO EM ENGENHARIA AGRÍCOLA","123805-COLEGIADO DE GRADUAÇÃO EM ENGENHARIA AGRÍCOLA"]
["123806","COLEGIADO DE GRADUAÇÃO EM ENGENHARIA FLORESTAL","123806-COLEGIADO DE GRADUAÇÃO EM ENGENHARIA FLORESTAL"]
["123807","COLEGIADO DE GRADUAÇÃO EM CIENCIA DA COMPUTACAO","123807-COLEGIADO DE GRADUAÇÃO EM CIENCIA DA COMPUTACAO"]
["123808","DIRETORIA REGISTRO CONTROLE ACADEMICO","123808-DIRETORIA REGISTRO CONTROLE ACADEMICO"]
["12380801","COORD DE POS-GRAD STRICTO-SENSU/DRCA","12380801-COORD DE POS-GRAD STRICTO-SENSU/DRCA"]
["12380802","COORD DE EXP E REG DE DIPLOMAS/DRCA","12380802-COORD DE EXP E REG DE DIPLOMAS/DRCA"]
["12380803","COORD DE GRADUACAO PRESENCIAL/DRCA","12380803-COORD DE GRADUACAO PRESENCIAL/DRCA"]
["12380804","COORD DE POS-GRAD LATO SENSU/DRCA","12380804-COORD DE POS-GRAD LATO SENSU/DRCA"]
["12380805","COORD DE GRADUACAO A DISTANCIA/DRCA","12380805-COORD DE GRADUACAO A DISTANCIA/DRCA"]
["12380806","COORDENADORIA DE ATENDIMENTO - DRCA","12380806-COORDENADORIA DE ATENDIMENTO - DRCA"]
["12380807","COORDENADORIA DE TECNOLOGIA DA INFORMAÇÃO/DRCA/PRG","12380807-COORDENADORIA DE TECNOLOGIA DA INFORMAÇÃO/DRCA/PRG"]
["123809","DIRETORIA DE PROCESSOS SELETIVOS","123809-DIRETORIA DE PROCESSOS SELETIVOS"]
["12380901","SECRETARIA EXECUTIVA COPESE","12380901-SECRETARIA EXECUTIVA COPESE"]
["12380902","VICE-DIRETORIA - DIPS","12380902-VICE-DIRETORIA - DIPS"]
["12380903","COORDENADORIA DE ELABORACAO DE PROVAS/DIPS","12380903-COORDENADORIA DE ELABORACAO DE PROVAS/DIPS"]
["12380904","COORDENADORIA DE SEGURANÇA- DIPS","12380904-COORDENADORIA DE SEGURANÇA- DIPS"]
["12380905","COORDENADORIA DE PESQUISA E DOCUMENTAÇÃO - DIPS","12380905-COORDENADORIA DE PESQUISA E DOCUMENTAÇÃO - DIPS"]
["12380906","COORDENADORIA DE INFORMÁTICA - DIPS","12380906-COORDENADORIA DE INFORMÁTICA - DIPS"]
["12380907","COORDENADORIA PEDAGÓGICA - DIPS","12380907-COORDENADORIA PEDAGÓGICA - DIPS"]
["12380908","COORDENADORIA DE REPROGRAFIA - DIPS","12380908-COORDENADORIA DE REPROGRAFIA - DIPS"]
["12380909","SECRETARIA ADMINISTRATIVA - DIPS","12380909-SECRETARIA ADMINISTRATIVA - DIPS"]
["123810","DIRETORIA DE APOIO E DESENV PEDAGOGICO","123810-DIRETORIA DE APOIO E DESENV PEDAGOGICO"]
["12381001","COORDENADORIA DE LOGÍSTICA/DADP","12381001-COORDENADORIA DE LOGÍSTICA/DADP"]
["12381002","COORDENADORIA PEDAGÓGICA/DADP","12381002-COORDENADORIA PEDAGÓGICA/DADP"]
["123811","COLEGIADO DE GRADUAÇÃO EM EDUCACAO FISICA - BACHARELADO","123811-COLEGIADO DE GRADUAÇÃO EM EDUCACAO FISICA - BACHARELADO"]
["123812","COLEGIADO DE GRADUAÇÃO EM MATEMATICA","123812-COLEGIADO DE GRADUAÇÃO EM MATEMATICA"]
["123813","COLEGIADO DE GRADUAÇÃO EM SISTEMAS INFORMACAO","123813-COLEGIADO DE GRADUAÇÃO EM SISTEMAS INFORMACAO"]
["123814","COLEGIADO DE GRADUAÇÃO EM CIENCIAS BIOLOGICAS - BAC","123814-COLEGIADO DE GRADUAÇÃO EM CIENCIAS BIOLOGICAS - BAC"]
["123815","COLEGIADO DE GRADUAÇÃO EM ENGENHARIA DE ALIMENTOS","123815-COLEGIADO DE GRADUAÇÃO EM ENGENHARIA DE ALIMENTOS"]
["123816","COLEGIADO DE GRADUAÇÃO EM QUIMICA - BAC","123816-COLEGIADO DE GRADUAÇÃO EM QUIMICA - BAC"]
["123817","COLEGIADO DE GRADUAÇÃO EM ADMINISTRAÇÃO PUBLICA - MODALIDADE A PRESENCIAL","123817-COLEGIADO DE GRADUAÇÃO EM ADMINISTRAÇÃO PUBLICA - MODALIDADE A PRESENCIAL"]
["123818","COLEGIADO DE GRADUAÇÃO EM FILOSOFIA - LIC - MODALIDADE PRESENCIAL","123818-COLEGIADO DE GRADUAÇÃO EM FILOSOFIA - LIC - MODALIDADE PRESENCIAL"]
["123819","COLEGIADO DE GRADUAÇÃO EM NUTRICAO","123819-COLEGIADO DE GRADUAÇÃO EM NUTRICAO"]
["123820","COLEGIADO DE GRADUAÇÃO EM ENGENHARIA DE CONTROLE E AUTOMACAO","123820-COLEGIADO DE GRADUAÇÃO EM ENGENHARIA DE CONTROLE E AUTOMACAO"]
["123821","COLEGIADO DE GRADUAÇÃO EM LETRAS PORTUGUÊS/INGLÊS - MODALIDADE PRESENCIAL","123821-COLEGIADO DE GRADUAÇÃO EM LETRAS PORTUGUÊS/INGLÊS - MODALIDADE PRESENCIAL"]
["123822","COLEGIADO DE GRADUAÇÃO EM FISICA","123822-COLEGIADO DE GRADUAÇÃO EM FISICA"]
["123823","CENTRO DE EDUCACAO A DISTANCIA","123823-CENTRO DE EDUCACAO A DISTANCIA"]
["12382301","COORDENADORIA PEDAGOGICA - CEAD","12382301-COORDENADORIA PEDAGOGICA - CEAD"]
["12382302","SECRETARIA ADMINISTRATIVA - CEAD","12382302-SECRETARIA ADMINISTRATIVA - CEAD"]
["12382303","COORDENAÇÃO UNIVERSIDADE ABERTA DO BRASIL - CEAD","12382303-COORDENAÇÃO UNIVERSIDADE ABERTA DO BRASIL - CEAD"]
["12382304","CEAD/SECADI","12382304-CEAD/SECADI"]
["12382305","CEAD/UAB","12382305-CEAD/UAB"]
["1238230501","COORD. INSTITUCIONAL DA UNIV. ABERTA DO BRASIL/UAB","1238230501-COORD. INSTITUCIONAL DA UNIV. ABERTA DO BRASIL/UAB"]
["1238230502","COORD. INSTITUCIONAL ADJUNTO DA UNIV. ABERTA DO BRASIL/UAB","1238230502-COORD. INSTITUCIONAL ADJUNTO DA UNIV. ABERTA DO BRASIL/UAB"]
["12382306","UNIDADE OPENUFLA","12382306-UNIDADE OPENUFLA"]
["12382307","COORDENAÇÃO GERAL /CEAD","12382307-COORDENAÇÃO GERAL /CEAD"]
["12382308","COORDENADORIA DE APOIO TÉCNICO/CEAD","12382308-COORDENADORIA DE APOIO TÉCNICO/CEAD"]
["12382309","COORDENADORIA DE TECNOLOGIA DA COMUNICAÇÃO E INFORMAÇÃO/CEAD","12382309-COORDENADORIA DE TECNOLOGIA DA COMUNICAÇÃO E INFORMAÇÃO/CEAD"]
["12382310","COORDENADORIA DE PROJETOS/CEAD","12382310-COORDENADORIA DE PROJETOS/CEAD"]
["12382311","CEAD/EMATER","12382311-CEAD/EMATER"]
["123824","COLEGIADO DE GRADUAÇÃO EM ENGENHARIA AMBIENTAL SANITARIA","123824-COLEGIADO DE GRADUAÇÃO EM ENGENHARIA AMBIENTAL SANITARIA"]
["123825","COLEGIADO DE GRADUACAO EM DIREITO","123825-COLEGIADO DE GRADUACAO EM DIREITO"]
["123826","COORDENADORIA DO PROGRAMA DE MOBILIDADE ESTUDANTIL","123826-COORDENADORIA DO PROGRAMA DE MOBILIDADE ESTUDANTIL"]
["123827","SECRETARIA ADMINISTRATIVA - PRG",{"$f":"CONCATENATE(A387,\"-\",B387)","v":"123827-SECRETARIA ADMINISTRATIVA - PRG"}]
["123829","CONSELHO DE GRADUAÇÃO - PRG","123829-CONSELHO DE GRADUAÇÃO - PRG"]
["123830","CÂMARA DE ASSUNTOS ACADÊMICOS - PRG","123830-CÂMARA DE ASSUNTOS ACADÊMICOS - PRG"]
["123831","CÂMARA DE MONITORIA - PRG","123831-CÂMARA DE MONITORIA - PRG"]
["123832","CÂMARA CURRICULAR - PRG","123832-CÂMARA CURRICULAR - PRG"]
["123833","ASSESSORIA PEDAGÓGICA - PRG","123833-ASSESSORIA PEDAGÓGICA - PRG"]
["123834","CÂMARA DE PROJETOS DE APOIO À GRADUAÇÃO - PRG","123834-CÂMARA DE PROJETOS DE APOIO À GRADUAÇÃO - PRG"]
["123835","CÂMARA DE AVALIAÇÃO DO ENSINO DE GRADUAÇÃO - PRG","123835-CÂMARA DE AVALIAÇÃO DO ENSINO DE GRADUAÇÃO - PRG"]
["123836","CÂMARA DE ASSESSORAMENTO DOS ESTÁGIOS DE LICENCIATURA - PRG","123836-CÂMARA DE ASSESSORAMENTO DOS ESTÁGIOS DE LICENCIATURA - PRG"]
["123837","COMITÊ LOCAL DE ACOMPANHAMENTO DO PROGRAMA DE EDUCAÇÃO TUTORIAL - PRG","123837-COMITÊ LOCAL DE ACOMPANHAMENTO DO PROGRAMA DE EDUCAÇÃO TUTORIAL - PRG"]
["123838","COLEGIADO DE GRADUACAO EM CIENCIAS BIOLOGICAS - LIC","123838-COLEGIADO DE GRADUACAO EM CIENCIAS BIOLOGICAS - LIC"]
["123839","COLEGIADO DE GRADUACAO EM EDUCACAO FISICA - LICENCIATURA","123839-COLEGIADO DE GRADUACAO EM EDUCACAO FISICA - LICENCIATURA"]
["123840","COLEGIADO DE GRADUACAO EM QUIMICA - LICENCIATURA E BACHARELADO","123840-COLEGIADO DE GRADUACAO EM QUIMICA - LICENCIATURA E BACHARELADO"]
["123841","COLEGIADO DE GRADUACAO EM LETRAS/PORTUGUÊS - EAD","123841-COLEGIADO DE GRADUACAO EM LETRAS/PORTUGUÊS - EAD"]
["123842","COLEGIADO DE GRADUACAO EM LETRAS/INGLÊS - EAD","123842-COLEGIADO DE GRADUACAO EM LETRAS/INGLÊS - EAD"]
["123843","COLEGIADO DE GRADUACAO EM FILOSOFIA - EAD","123843-COLEGIADO DE GRADUACAO EM FILOSOFIA - EAD"]
["123844","COLEGIADO DE GRADUACAO EM ADMINISTRAÇÃO PÚBLICA - EAD","123844-COLEGIADO DE GRADUACAO EM ADMINISTRAÇÃO PÚBLICA - EAD"]
["123845","COLEGIADO DE GRADUACAO EM PEDAGOGIA - EAD","123845-COLEGIADO DE GRADUACAO EM PEDAGOGIA - EAD"]
["123846","COLEGIADO DE GRADUACAO EM ENGENHARIA MECÂNICA","123846-COLEGIADO DE GRADUACAO EM ENGENHARIA MECÂNICA"]
["123847","COLEGIADO DE GRADUACAO EM ENGENHARIA CIVIL","123847-COLEGIADO DE GRADUACAO EM ENGENHARIA CIVIL"]
["123848","COLEGIADO DE GRADUACAO EM ENGENHARIA FÍSICA","123848-COLEGIADO DE GRADUACAO EM ENGENHARIA FÍSICA"]
["123850","COLEGIADO DA AREA BASICA DE INGRESSO - ABI-ENGENHARIA","123850-COLEGIADO DA AREA BASICA DE INGRESSO - ABI-ENGENHARIA"]
["123851","COLEGIADO DE GRADUACAO EM ENGENHARIA DE MATERIAIS","123851-COLEGIADO DE GRADUACAO EM ENGENHARIA DE MATERIAIS"]
["123852","COLEGIADO DE GRADUACAO EM ENGENHARIA QUIMICA","123852-COLEGIADO DE GRADUACAO EM ENGENHARIA QUIMICA"]
["123853","COLEGIADO DE GRADUAÇÃO EM MEDICINA","123853-COLEGIADO DE GRADUAÇÃO EM MEDICINA"]
["123854","COLEGIADO DE GRADUACAO EM LICENCIATURA EM PEDAGOGIA PRESENCIAL","123854-COLEGIADO DE GRADUACAO EM LICENCIATURA EM PEDAGOGIA PRESENCIAL"]
["123855","COLEGIADO DE GRADUAÇÃO EM ENGENHARIA DE COMPUTAÇÃO","123855-COLEGIADO DE GRADUAÇÃO EM ENGENHARIA DE COMPUTAÇÃO"]
["123856","DIRETORIA DE EDUCACAO A DISTANCIA/PRG","123856-DIRETORIA DE EDUCACAO A DISTANCIA/PRG"]
["12385601","COORDENADORIA DE RECURSOS EDUCACIONAIS/DIRED","12385601-COORDENADORIA DE RECURSOS EDUCACIONAIS/DIRED"]
["12385602","COORDENADORIA DE PROJETOS E FORMACAO/DIRED","12385602-COORDENADORIA DE PROJETOS E FORMACAO/DIRED"]
["12385603","COORDENACAO UAB/UFLA","12385603-COORDENACAO UAB/UFLA"]
["12385604","SECRETARIA ADMINISTRATIVA DA DIRETORIA DE EDUCACAO A DISTANCIA/PRG","12385604-SECRETARIA ADMINISTRATIVA DA DIRETORIA DE EDUCACAO A DISTANCIA/PRG"]
["12385605","DIRETOR DE EDUCACAO A DISTANCIA/DIRET/PRG","12385605-DIRETOR DE EDUCACAO A DISTANCIA/DIRET/PRG"]
["123857","DIRETORIA DE AVALIACAO E DESENVOLVIMENTO DO ENSINO/PRG","123857-DIRETORIA DE AVALIACAO E DESENVOLVIMENTO DO ENSINO/PRG"]
["123858","COLEGIADO DE GRADUAÇAO EM ENGENHARIA QUIMICA/PRG","123858-COLEGIADO DE GRADUAÇAO EM ENGENHARIA QUIMICA/PRG"]
["123859","DIRETORIA DE PLANEJAMENTO E GESTAO ACADEMICA/PRG","123859-DIRETORIA DE PLANEJAMENTO E GESTAO ACADEMICA/PRG"]
["12385901","DIRETORIA/DPGA","12385901-DIRETORIA/DPGA"]
["12385902","COORDENADORIA DE PROGRAMAS E PROJETOS","12385902-COORDENADORIA DE PROGRAMAS E PROJETOS"]
["12385904","SECRETARIA DOS CURSOS DE GRADUAÇÃO","12385904-SECRETARIA DOS CURSOS DE GRADUAÇÃO"]
["12385905","COORDENADORIA DE TEC DIGITAIS DE INFORMAÇAO  E COMUNICAÇAO","12385905-COORDENADORIA DE TEC DIGITAIS DE INFORMAÇAO  E COMUNICAÇAO"]
["12385906","SECRETARIA ADMINISTRATIVA","12385906-SECRETARIA ADMINISTRATIVA"]
["123861","COLEGIADOS DE CURSOS","123861-COLEGIADOS DE CURSOS"]
["123862","NUCLEO DE EDUCACAO DA INFANCIA/PRG","123862-NUCLEO DE EDUCACAO DA INFANCIA/PRG"]
["1239","PRO REITORIA DE POS GRADUACAO","1239-PRO REITORIA DE POS GRADUACAO"]
["123901","PPG FITOTECNIA","123901-PPG FITOTECNIA"]
["123902","PPG FISIOLOGIA VEGETAL","123902-PPG FISIOLOGIA VEGETAL"]
["123903","PPG ADMINISTRACAO","123903-PPG ADMINISTRACAO"]
["123904","PPG CIENCIA DOS ALIMENTOS","123904-PPG CIENCIA DOS ALIMENTOS"]
["123905","PPG ZOOTECNIA","123905-PPG ZOOTECNIA"]
["12390543","COORDENADORIA DE POS-GRADUAÇAO EM ZOOTECNIA/MESTRADO","12390543-COORDENADORIA DE POS-GRADUAÇAO EM ZOOTECNIA/MESTRADO"]
["123906","PPG GENETICA E MELHORAMENTO DE PLANTAS","123906-PPG GENETICA E MELHORAMENTO DE PLANTAS"]
["123907","PPG ESTATISTICA E EXPERIMENTACAO AGROPECUARIA","123907-PPG ESTATISTICA E EXPERIMENTACAO AGROPECUARIA"]
["123908","PPG CIENCIA DO SOLO","123908-PPG CIENCIA DO SOLO"]
["123909","PPG ENGENHARIA FLORESTAL","123909-PPG ENGENHARIA FLORESTAL"]
["123910","PPG ENGENHARIA  AGRICOLA","123910-PPG ENGENHARIA  AGRICOLA"]
["123911","PPG ENTOMOLOGIA","123911-PPG ENTOMOLOGIA"]
["123912","PPG FITOPATOLOGIA","123912-PPG FITOPATOLOGIA"]
["123913","PPG AGROQUIMICA","123913-PPG AGROQUIMICA"]
["123914","PPG CIENCIAS VETERINARIAS","123914-PPG CIENCIAS VETERINARIAS"]
["123915","PPG MICROBIOLOGIA AGRICOLA","123915-PPG MICROBIOLOGIA AGRICOLA"]
["123916","PPG RECURSOS HIDRICOS EM SISTEMAS AGRICOLAS","123916-PPG RECURSOS HIDRICOS EM SISTEMAS AGRICOLAS"]
["123917","PPG ECOLOGIA APLICADA","123917-PPG ECOLOGIA APLICADA"]
["123918","PPG BIOTECNOLOGIA VEGETAL","123918-PPG BIOTECNOLOGIA VEGETAL"]
["123919","PPG CIENCIA E TECNOLOGIA DA MADEIRA","123919-PPG CIENCIA E TECNOLOGIA DA MADEIRA"]
["123920","COORD PROG POS GRAD SS ENG SISTEMAS/DEG",{"$f":"CONCATENATE(A451,\"-\",B451)","v":"123920-COORD PROG POS GRAD SS ENG SISTEMAS/DEG"}]
["123921","PPG PLANTAS MEDICINAIS, AROMATICAS E CONDIMENTARES","123921-PPG PLANTAS MEDICINAIS, AROMATICAS E CONDIMENTARES"]
["123922","COORD PROG POS GRAD BIOT VEGETAL","123922-COORD PROG POS GRAD BIOT VEGETAL"]
["123923","PPG BOTANICA APLICADA","123923-PPG BOTANICA APLICADA"]
["123924","PPG CIENCIA COMPUTACAO","123924-PPG CIENCIA COMPUTACAO"]
["123925","PPG FISICA","123925-PPG FISICA"]
["123927","PPG TECNOLOGIAS E INOVACOES AMBIENTAIS - MP","123927-PPG TECNOLOGIAS E INOVACOES AMBIENTAIS - MP"]
["123928","PPG ADMINISTRACAO PUBLICA - MP","123928-PPG ADMINISTRACAO PUBLICA - MP"]
["123929","COORDENADORIA DE RECURSOS E BOLSAS/PRPG","123929-COORDENADORIA DE RECURSOS E BOLSAS/PRPG"]
["123930","CAMARA DE TREINAMENTO - PRPG","123930-CAMARA DE TREINAMENTO - PRPG"]
["123931","SECRETARIA ADMINISTRATIVA - PRPG","123931-SECRETARIA ADMINISTRATIVA - PRPG"]
["123932","PRO-REITORIA ADJUNTA DE PÓS-GRADUAÇÃO LATO SENSU","123932-PRO-REITORIA ADJUNTA DE PÓS-GRADUAÇÃO LATO SENSU"]
["123933","PRÓ-REITORIA ADJUNTA DE PÓS-GRADUAÇÃO STRICTO SENSU","123933-PRÓ-REITORIA ADJUNTA DE PÓS-GRADUAÇÃO STRICTO SENSU"]
["12393301","CONSELHO DE PÓS-GRADUAÇÃO STRICTO SENSU","12393301-CONSELHO DE PÓS-GRADUAÇÃO STRICTO SENSU"]
["1239330101","CÂMARA DE ASSUNTOS ACADÊMICOS - PRPG","1239330101-CÂMARA DE ASSUNTOS ACADÊMICOS - PRPG"]
["1239330102","CÂMARA DE DISSERTAÇÕES E TESES - PRPG","1239330102-CÂMARA DE DISSERTAÇÕES E TESES - PRPG"]
["1239330103","CÂMARA DE TREINAMENTO - PRPG","1239330103-CÂMARA DE TREINAMENTO - PRPG"]
["1239330104","CÂMARA DE INTERNACIONALIZAÇÃO - PRPG","1239330104-CÂMARA DE INTERNACIONALIZAÇÃO - PRPG"]
["12393302","COORDENADORIA ACADEMICA STRICTO SENSU/PRPG","12393302-COORDENADORIA ACADEMICA STRICTO SENSU/PRPG"]
["12393303","COORDENADORIA ADMINISTRATIVA STRICTO SENSU/PRPG","12393303-COORDENADORIA ADMINISTRATIVA STRICTO SENSU/PRPG"]
["123934","PPG GENETICA E MELHORAMENTO DE PLANTAS - MP","123934-PPG GENETICA E MELHORAMENTO DE PLANTAS - MP"]
["123935","PPG EDUCAÇÃO - MP","123935-PPG EDUCAÇÃO - MP"]
["123936","PPG DESENVOVIMENTOL SUSTENTÁVEL E EXTENSAO - MP","123936-PPG DESENVOVIMENTOL SUSTENTÁVEL E EXTENSAO - MP"]
["123937","PPG ENGENHARIA DE BIOMATERIAIS","123937-PPG ENGENHARIA DE BIOMATERIAIS"]
["123938","COMISSÃO DE RESIDÊNCIA MULTIPROFISSIONAL -PRPG","123938-COMISSÃO DE RESIDÊNCIA MULTIPROFISSIONAL -PRPG"]
["123939","COORD PROG POS GRAD EM ADMINISTRACAO/MESTRADO/DAE","123939-COORD PROG POS GRAD EM ADMINISTRACAO/MESTRADO/DAE"]
["123940","PROGRAMA DE PÓS-GRADUAÇÃO EM TECNOLOGIAS E INOVAÇÕES AMBIENTAIS - MESTRADO PROFISSIONAL","123940-PROGRAMA DE PÓS-GRADUAÇÃO EM TECNOLOGIAS E INOVAÇÕES AMBIENTAIS - MESTRADO PROFISSIONAL"]
["123941","COORD PROG PG MESTRADO NACIONAL PROFISSIONAL NO ENSINO DE FÍSICA","123941-COORD PROG PG MESTRADO NACIONAL PROFISSIONAL NO ENSINO DE FÍSICA"]
["123942","COORD PROG PG MESTRADO PROFISSIONAL EM MATEMÁTICA","123942-COORD PROG PG MESTRADO PROFISSIONAL EM MATEMÁTICA"]
["123943","COORDENADORIA DO PROGRAMA DE PÓS-GRADUAÇÃO EM ENGENHARIA AGRÍCOLA - MESTRADO","123943-COORDENADORIA DO PROGRAMA DE PÓS-GRADUAÇÃO EM ENGENHARIA AGRÍCOLA - MESTRADO"]
["123944","COORDENADORIA DO PROGRAMA DE PÓS-GRADUAÇÃO EM MICROBIOLOGIA AGRÍCOLA/DBI - MESTRADO","123944-COORDENADORIA DO PROGRAMA DE PÓS-GRADUAÇÃO EM MICROBIOLOGIA AGRÍCOLA/DBI - MESTRADO"]
["123945","COORD PROG PG SS EM ENGENHARIA FLORESTAL /DCF/MESTRADO","123945-COORD PROG PG SS EM ENGENHARIA FLORESTAL /DCF/MESTRADO"]
["123946","COORDENADORA DO PROGRAMA DE POS_GRADUAÇÃO  EM GENETICA E MELHORAMENTO DE PLANTAS, NIVEL MESTRADO/PRPG","123946-COORDENADORA DO PROGRAMA DE POS_GRADUAÇÃO  EM GENETICA E MELHORAMENTO DE PLANTAS, NIVEL MESTRADO/PRPG"]
["123947","COORDENADORA DO PROGRAMA DE POS_GRADUAÇÃO  EM GENETICA E MELHORAMENTO DE PLANTAS, NIVEL MESTRADO PROFISSIONAL/PRPG","123947-COORDENADORA DO PROGRAMA DE POS_GRADUAÇÃO  EM GENETICA E MELHORAMENTO DE PLANTAS, NIVEL MESTRADO PROFISSIONAL/PRPG"]
["123948","COORDENADORA DO PROGRAMA DE POS_GRADUAÇÃO  EM GENETICA E MELHORAMENTO DE PLANTAS","123948-COORDENADORA DO PROGRAMA DE POS_GRADUAÇÃO  EM GENETICA E MELHORAMENTO DE PLANTAS"]
["123949","COORD PROG POS GRAD EM AGROQUIMICA MESTRADO/DQI","123949-COORD PROG POS GRAD EM AGROQUIMICA MESTRADO/DQI"]
["123950","COORD PROG PG SS EM EDUCAÇÃO/NIVEL MEST PROF/DED","123950-COORD PROG PG SS EM EDUCAÇÃO/NIVEL MEST PROF/DED"]
["123951","COORDENADORIA DO PROGRAMA DE POS-GRADUACAO EM AGRONOMIA/FITOPATOLOGIA/MESTRADO","123951-COORDENADORIA DO PROGRAMA DE POS-GRADUACAO EM AGRONOMIA/FITOPATOLOGIA/MESTRADO"]
["123952","COORD PROG PG AGRONOM FISIO VEGETAL/NIVEL MESTRADO/DBI/","123952-COORD PROG PG AGRONOM FISIO VEGETAL/NIVEL MESTRADO/DBI/"]
["123953","COORD PROG PG EM ENG DE BIOMATERIAIS/NIVEL MESTRADO/PRPG","123953-COORD PROG PG EM ENG DE BIOMATERIAIS/NIVEL MESTRADO/PRPG"]
["123954","COORD PROG POS GRAD CIENC E TECNOL DA MADEIRA/NIVEL MESTRADO/PRPG","123954-COORD PROG POS GRAD CIENC E TECNOL DA MADEIRA/NIVEL MESTRADO/PRPG"]
["123955","COORD PROG POS GRAD AGRON FITOTECNIA/NIVEL MESTRADO/DAG","123955-COORD PROG POS GRAD AGRON FITOTECNIA/NIVEL MESTRADO/DAG"]
["123956","COORD PROG PG EM CIENCIAS DO SOLO /DCS/MESTRADO","123956-COORD PROG PG EM CIENCIAS DO SOLO /DCS/MESTRADO"]
["123958","COOR PRO TEMPORE DO PROG DE PG EM ENGENARIA DE SIST E AUTOMACAO/PRPG","123958-COOR PRO TEMPORE DO PROG DE PG EM ENGENARIA DE SIST E AUTOMACAO/PRPG"]
["123959","COORD. ADJUNTA DO PROG DE POS-GRAD EM ADM PUBLICA NIVEL MESTRADO PROFISSIONAL","123959-COORD. ADJUNTA DO PROG DE POS-GRAD EM ADM PUBLICA NIVEL MESTRADO PROFISSIONAL"]
["123960","COORD. ADJUNTO PROG. DE POS-GRAD. MULTICENTRICO EM QUIMICA DE MG","123960-COORD. ADJUNTO PROG. DE POS-GRAD. MULTICENTRICO EM QUIMICA DE MG"]
["123961","PPG MULTICENTRICO EM QUIMICA DE MINAS GERAIS","123961-PPG MULTICENTRICO EM QUIMICA DE MINAS GERAIS"]
["123962","COORD. PROG. DE POS-GRAD. EM BOTANICA APLICADA NIVEL MESTRADO","123962-COORD. PROG. DE POS-GRAD. EM BOTANICA APLICADA NIVEL MESTRADO"]
["123963","PPG NUTRICAO E SAUDE","123963-PPG NUTRICAO E SAUDE"]
["123964","COORD PROG POS GRAD AGRO ENTOMOLOGIA/MESTRADO","123964-COORD PROG POS GRAD AGRO ENTOMOLOGIA/MESTRADO"]
["123965","COORD. ADJUNTA DO PROG DE PG STRICTO SENSU EM FISICA/PRGP","123965-COORD. ADJUNTA DO PROG DE PG STRICTO SENSU EM FISICA/PRGP"]
["123966","COORDENADORIA DO CURSO DE PG LATO SENSU EM PROD DE MAT DIDÁTICO U LINUX EDUCACIONAL/PRPG","123966-COORDENADORIA DO CURSO DE PG LATO SENSU EM PROD DE MAT DIDÁTICO U LINUX EDUCACIONAL/PRPG"]
["123967","COORDENADOR DO CURSO PG LATO SENSU EM USO EDUCACIONAL DA INTERNET/PRPG","123967-COORDENADOR DO CURSO PG LATO SENSU EM USO EDUCACIONAL DA INTERNET/PRPG"]
["123968","PPG CIENCIAS DA SAUDE","123968-PPG CIENCIAS DA SAUDE"]
["123969","COORDENADORIA DO CURSO DE ESPECIALIZACAO EM GESTAO PUBLICA/PRPG","123969-COORDENADORIA DO CURSO DE ESPECIALIZACAO EM GESTAO PUBLICA/PRPG"]
["123970","PRG CIENCIAS VETERINARIAS - MP","123970-PRG CIENCIAS VETERINARIAS - MP"]
["1240","PRO-REITORIA DE GESTAO E DESENVOLVIMENTO DE PESSOAS","1240-PRO-REITORIA DE GESTAO E DESENVOLVIMENTO DE PESSOAS"]
["124001","ASSESSORIA TEC LEGISLACAO E NORMAS/PRGDP","124001-ASSESSORIA TEC LEGISLACAO E NORMAS/PRGDP"]
["124002","DIRETORIA DE DESENV DE PESSOAS/PRGDP","124002-DIRETORIA DE DESENV DE PESSOAS/PRGDP"]
["12400201","COORDENADORIA DE SELECAO/DDP/PRGDP","12400201-COORDENADORIA DE SELECAO/DDP/PRGDP"]
["12400202","COORD DE SAUDE OCUPACIONAL/PRGDP","12400202-COORD DE SAUDE OCUPACIONAL/PRGDP"]
["12400203","COORD DE CAPACITACAO E AVALIACAO/PRGDP","12400203-COORD DE CAPACITACAO E AVALIACAO/PRGDP"]
["12400204","COORD GESTAO DE COMPETENCIAS/DDP/PRGDP","12400204-COORD GESTAO DE COMPETENCIAS/DDP/PRGDP"]
["124003","DIRETORIA DE GESTAO DE PESSOAS/PRGDP","124003-DIRETORIA DE GESTAO DE PESSOAS/PRGDP"]
["12400301","COORD DE APOSENTADORIAS E PENSOES",{"$f":"CONCATENATE(A515,\"-\",B515)","v":"12400301-COORD DE APOSENTADORIAS E PENSOES"}]
["12400302","COORD DE CADASTRO E CONT PESSOAL/DGP","12400302-COORD DE CADASTRO E CONT PESSOAL/DGP"]
["12400303","COORD DE REGISTRO E CONT FINANCEIRO/DGP","12400303-COORD DE REGISTRO E CONT FINANCEIRO/DGP"]
["12400304","COORD DE GESTAO DE VAGAS/DGP/PRGDP","12400304-COORD DE GESTAO DE VAGAS/DGP/PRGDP"]
["1241","BIBLIOTECA UNIVERSITARIA","1241-BIBLIOTECA UNIVERSITARIA"]
["124101","COORD DE PRODUTOS E SERVICOS/BU","124101-COORD DE PRODUTOS E SERVICOS/BU"]
["124102","COORD DE ATENDIMENTO AO USUARIO/BU","124102-COORD DE ATENDIMENTO AO USUARIO/BU"]
["12410201","SETOR DE CIRCULACAO/COORDENADORIA DE ATENDIMENTO AO USUARIO/BU","12410201-SETOR DE CIRCULACAO/COORDENADORIA DE ATENDIMENTO AO USUARIO/BU"]
["12410202","SETOR DE REFERENCIAS/COORDENADORIA DE ATENDIMENTO AO USUARIO/BU","12410202-SETOR DE REFERENCIAS/COORDENADORIA DE ATENDIMENTO AO USUARIO/BU"]
["124103","COORD DE PROCESSOS TECNICOS/BU","124103-COORD DE PROCESSOS TECNICOS/BU"]
["124104","SETOR DE INTERCAMBIO E DOACAO/BU","124104-SETOR DE INTERCAMBIO E DOACAO/BU"]
["124105","COORD DE DESENVOLVIMENTO DO ACERVO/BU","124105-COORD DE DESENVOLVIMENTO DO ACERVO/BU"]
["124106","COORD DE RECURSOS TECNOLOGICOS/BU","124106-COORD DE RECURSOS TECNOLOGICOS/BU"]
["124107","COORDENADORIA DE RECURSOS TECNOLÓGICOS/BU","124107-COORDENADORIA DE RECURSOS TECNOLÓGICOS/BU"]
["124108","COORD DE REPOSITÓRIO INSTITUCIONAL/BU/REITORIA","124108-COORD DE REPOSITÓRIO INSTITUCIONAL/BU/REITORIA"]
["124109","COORD DE INFORMAÇAO E SERVIÇOS/BU/REITORIA","124109-COORD DE INFORMAÇAO E SERVIÇOS/BU/REITORIA"]
["12410901","SETOR DE CIRCULACAO/COORDENADORIA DE INFORMACAO E SERVICOS/BU","12410901-SETOR DE CIRCULACAO/COORDENADORIA DE INFORMACAO E SERVICOS/BU"]
["124110","SECRETARIA DA BIBLIOTECA UNIVERSITARIA","124110-SECRETARIA DA BIBLIOTECA UNIVERSITARIA"]
["124111","COORD DE TECNOLOGIA DA INFORMACAO/BU","124111-COORD DE TECNOLOGIA DA INFORMACAO/BU"]
["1242","DIRETORIA DE PRODUCAO","1242-DIRETORIA DE PRODUCAO"]
["124201","ASSESSORIA DA DIRETORIA DE PRODUCAO","124201-ASSESSORIA DA DIRETORIA DE PRODUCAO"]
["1243","PROCURADORIA GERAL","1243-PROCURADORIA GERAL"]
["124301","COORD CONS JUR ADM","124301-COORD CONS JUR ADM"]
["1244","AUDITORIA INTERNA","1244-AUDITORIA INTERNA"]
["1245","COMIS PERM PESSOAL DOCENTE","1245-COMIS PERM PESSOAL DOCENTE"]
["1246","COMISSÃO INTERNA DE SUPERVISÃO DA CARREIRA DOS TÉCNICO-ADMINISTRATIVOS EM EDUCAÇÃO","1246-COMISSÃO INTERNA DE SUPERVISÃO DA CARREIRA DOS TÉCNICO-ADMINISTRATIVOS EM EDUCAÇÃO"]
["1247","DEPARTAMENTO DE ADM E ECONOMIA","1247-DEPARTAMENTO DE ADM E ECONOMIA"]
["1248","DEPARTAMENTO DE AGRICULTURA","1248-DEPARTAMENTO DE AGRICULTURA"]
["124801","SETOR DE AGRICULTURA GERAL","124801-SETOR DE AGRICULTURA GERAL"]
["124802","SETOR DE CAFEICULTURA","124802-SETOR DE CAFEICULTURA"]
["124803","SETOR DE CULTURA DE TECIDOS","124803-SETOR DE CULTURA DE TECIDOS"]
["124804","SETOR DE FRUTICULTURA E PAISAGISMO","124804-SETOR DE FRUTICULTURA E PAISAGISMO"]
["124805","SETOR DE FRUTICULTURA","124805-SETOR DE FRUTICULTURA"]
["124806","SETOR DE GRANDES CULTURAS","124806-SETOR DE GRANDES CULTURAS"]
["124807","SETOR DE OLERICULTURA","124807-SETOR DE OLERICULTURA"]
["124808","SETOR DE PLANTAS DANINHAS","124808-SETOR DE PLANTAS DANINHAS"]
["124809","SETOR DE PLANTAS MEDICINAIS, AROMÁTICAS E CONDIMENTARES","124809-SETOR DE PLANTAS MEDICINAIS, AROMÁTICAS E CONDIMENTARES"]
["124810","SETOR DE SEMENTES","124810-SETOR DE SEMENTES"]
["1249","DEPARTAMENTO DE BIOLOGIA","1249-DEPARTAMENTO DE BIOLOGIA"]
["124901","HERBÁRIO - DBI","124901-HERBÁRIO - DBI"]
["1250","DEPARTAMENTO DE CIENCIA DOS ALIMENTOS","1250-DEPARTAMENTO DE CIENCIA DOS ALIMENTOS"]
["1251","DEPARTAMENTO DE CIENCIA DA COMPUTACAO","1251-DEPARTAMENTO DE CIENCIA DA COMPUTACAO"]
["1252","DEPARTAMENTO DE CIENCIAS EXATAS","1252-DEPARTAMENTO DE CIENCIAS EXATAS"]
["1253","DEPARTAMENTO DE CIENCIAS FLORESTAIS","1253-DEPARTAMENTO DE CIENCIAS FLORESTAIS"]
["125301","LABORATÓRIO DE SEMENTES FLORESTAIS - LSF","125301-LABORATÓRIO DE SEMENTES FLORESTAIS - LSF"]
["1254","DEPARTAMENTO DE CIENCIA DO SOLO","1254-DEPARTAMENTO DE CIENCIA DO SOLO"]
["1255","DEPARTAMENTO DE EDUCACAO","1255-DEPARTAMENTO DE EDUCACAO"]
["1256","DEPARTAMENTO DE EDUCACAO FISICA","1256-DEPARTAMENTO DE EDUCACAO FISICA"]
["1257","DEPARTAMENTO DE ENGENHARIA","1257-DEPARTAMENTO DE ENGENHARIA"]
["1258","DEPARTAMENTO DE ENTOMOLOGIA","1258-DEPARTAMENTO DE ENTOMOLOGIA"]
["1259","DEPARTAMENTO DE FITOPATOLOGIA","1259-DEPARTAMENTO DE FITOPATOLOGIA"]
["1260","DEPARTAMENTO DE MEDICINA VETERINARIA","1260-DEPARTAMENTO DE MEDICINA VETERINARIA"]
["126001","HOSPITAL VETERINARIO","126001-HOSPITAL VETERINARIO"]
["1261","DEPARTAMENTO DE QUIMICA","1261-DEPARTAMENTO DE QUIMICA"]
["1262","DEPARTAMENTO DE ZOOTECNIA","1262-DEPARTAMENTO DE ZOOTECNIA"]
["126201","AVICULTURA/DZO","126201-AVICULTURA/DZO"]
["1266","DEPARTAMENTO DE CIENCIAS HUMANAS","1266-DEPARTAMENTO DE CIENCIAS HUMANAS"]
["1267","COMISSAO PROPRIA DE AVALIACAO","1267-COMISSAO PROPRIA DE AVALIACAO"]
["1268","DIRETORIA DE RELACOES INTERNACIONAIS","1268-DIRETORIA DE RELACOES INTERNACIONAIS"]
["126801","EMBAIXADORES UFLA","126801-EMBAIXADORES UFLA"]
["126802","COORDENADORIA DE RELACOES INTERINSTITUCIONAIS/DRI","126802-COORDENADORIA DE RELACOES INTERINSTITUCIONAIS/DRI"]
["126803","COORDENADORIA CIENTIFICA/DRI","126803-COORDENADORIA CIENTIFICA/DRI"]
["126804","COORDENADORIA DE IDIOMAS/DRI","126804-COORDENADORIA DE IDIOMAS/DRI"]
["126805","COORDENADORIA JURIDICA/DRI","126805-COORDENADORIA JURIDICA/DRI"]
["7001","PROJETOS PAPP",{"$f":"CONCATENATE(A579,\"-\",B579)","v":"7001-PROJETOS PAPP"}]
["70010001","PAPP2015/109","70010001-PAPP2015/109"]
["70010002","PAPP2015/108","70010002-PAPP2015/108"]
["70010003","PAPP2015/107","70010003-PAPP2015/107"]
["70010004","PAPP2015/106","70010004-PAPP2015/106"]
["70010005","PAPP 2015/012","70010005-PAPP 2015/012"]
["70010006","PAPP 2015/013","70010006-PAPP 2015/013"]
["70010007","PAPP 2015/104","70010007-PAPP 2015/104"]
["70010008","PAPP2015/103","70010008-PAPP2015/103"]
["70010009","PAPP2015/102","70010009-PAPP2015/102"]
["70010010","PAPP 2015/016","70010010-PAPP 2015/016"]
["70010011","PAPP 2015/017","70010011-PAPP 2015/017"]
["70010012","PAPP 2015/100","70010012-PAPP 2015/100"]
["70010013","PAPP 2015/018","70010013-PAPP 2015/018"]
["70010014","PAPP 2015/019","70010014-PAPP 2015/019"]
["70010015","PAPP 2015/020","70010015-PAPP 2015/020"]
["70010016","PAPP 2015/021","70010016-PAPP 2015/021"]
["70010017","PAPP 2015/023","70010017-PAPP 2015/023"]
["70010018","PAPP 2015/025","70010018-PAPP 2015/025"]
["70010019","PAPP 2015/026","70010019-PAPP 2015/026"]
["70010020","PAPP 2015/027","70010020-PAPP 2015/027"]
["70010021","PAPP 2015/028","70010021-PAPP 2015/028"]
["70010022","PAPP 2015/030","70010022-PAPP 2015/030"]
["70010023","PAPP 2015/032","70010023-PAPP 2015/032"]
["70010024","PAPP 2015/033","70010024-PAPP 2015/033"]
["70010025","PAPP 2015/035","70010025-PAPP 2015/035"]
["70010026","PAPP2015/099","70010026-PAPP2015/099"]
["70010027","PAPP 2015/038","70010027-PAPP 2015/038"]
["70010028","PAPP 2015/039","70010028-PAPP 2015/039"]
["70010029","PAPP 2015/040","70010029-PAPP 2015/040"]
["70010030","PAPP 2015/041","70010030-PAPP 2015/041"]
["70010031","PAPP 2015/042","70010031-PAPP 2015/042"]
["70010032","PAPP 2015/043","70010032-PAPP 2015/043"]
["70010033","PAPP 2015/044","70010033-PAPP 2015/044"]
["70010034","PAPP 2015/045","70010034-PAPP 2015/045"]
["70010035","PAPP 2015/047","70010035-PAPP 2015/047"]
["70010036","PAPP 2015/048","70010036-PAPP 2015/048"]
["70010037","PAPP 2015/049","70010037-PAPP 2015/049"]
["70010039","PAPP 2015/053","70010039-PAPP 2015/053"]
["70010040","PAPP2015/098","70010040-PAPP2015/098"]
["70010041","PAPP 2015/055","70010041-PAPP 2015/055"]
["70010042","PAPP 2015/056","70010042-PAPP 2015/056"]
["70010043","PAPP 2015/057","70010043-PAPP 2015/057"]
["70010044","PAPP2015/097","70010044-PAPP2015/097"]
["70010045","PAPP2015/096","70010045-PAPP2015/096"]
["70010046","PAPP2015/095","70010046-PAPP2015/095"]
["70010047","PAPP2015/94","70010047-PAPP2015/94"]
["70010048","PAPP2015/092","70010048-PAPP2015/092"]
["70010049","PAPP2015/091","70010049-PAPP2015/091"]
["70010050","PAPP2015/090","70010050-PAPP2015/090"]
["70010051","PAPP2015/089","70010051-PAPP2015/089"]
["70010052","PAPP2015/087","70010052-PAPP2015/087"]
["70010053","PAPP2015/085","70010053-PAPP2015/085"]
["70010054","PAPP2015/082","70010054-PAPP2015/082"]
["70010055","PAPP2015/080","70010055-PAPP2015/080"]
["70010056","PAPP2015/078","70010056-PAPP2015/078"]
["70010057","PAPP2015/073","70010057-PAPP2015/073"]
["70010058","PAPP2015/072","70010058-PAPP2015/072"]
["70010059","PAPP2015/071","70010059-PAPP2015/071"]
["70010060","PAPP2015/069","70010060-PAPP2015/069"]
["70010061","PAPP2015/067","70010061-PAPP2015/067"]
["70010062","PAPP2015/066","70010062-PAPP2015/066"]
["70010063","PAPP2015/063","70010063-PAPP2015/063"]
["70010064","PAPP2015/062","70010064-PAPP2015/062"]
["70010065","PAPP2015/061",{"$f":"CONCATENATE(A643,\"-\",B643)","v":"70010065-PAPP2015/061"}]
["70010066","PAPP2015/051","70010066-PAPP2015/051"]
["70010067","PAPP2015/019","70010067-PAPP2015/019"]
["70010068","PAPP2015/101","70010068-PAPP2015/101"]
["700101","PAPP 2015/001","700101-PAPP 2015/001"]
["70010105","PAPP 2015/105","70010105-PAPP 2015/105"]
["700102","PAPP 2015/002","700102-PAPP 2015/002"]
["700104","PAPP 2015/004","700104-PAPP 2015/004"]
["700105","PAPP 2015/005","700105-PAPP 2015/005"]
["700106","PAPP 2015/006","700106-PAPP 2015/006"]
["700107","PAPP 2015/007","700107-PAPP 2015/007"]
["700108","PAPP 2015/008","700108-PAPP 2015/008"]
["700109","PAPP 2015/009","700109-PAPP 2015/009"]
["700110","PAPP 2015/010","700110-PAPP 2015/010"]
["700111","PAPP 2015/011","700111-PAPP 2015/011"]
["700114","PAPP 2015/014","700114-PAPP 2015/014"]
["700115","PAPP 2015/015","700115-PAPP 2015/015"]
["700122","PAPP 2015/022","700122-PAPP 2015/022"]
["700124","PAPP 2015/024","700124-PAPP 2015/024"]
["700129","PAPP 2015/029","700129-PAPP 2015/029"]
["700131","PAPP 2015/031","700131-PAPP 2015/031"]
["700134","PAPP 2015/034","700134-PAPP 2015/034"]
["700136","PAPP 2015/036","700136-PAPP 2015/036"]
["700137","PAPP 2015/037","700137-PAPP 2015/037"]
["700146","PAPP 2015/046","700146-PAPP 2015/046"]
["700150","PAPP 2015/050","700150-PAPP 2015/050"]
["700152","PAPP 2015/052","700152-PAPP 2015/052"]
["700154","PAPP 2015/054","700154-PAPP 2015/054"]
["700158","PAPP 2015/058","700158-PAPP 2015/058"]
["700159","PAPP 2015/059","700159-PAPP 2015/059"]
["700160","PAPP 2015/060","700160-PAPP 2015/060"]
["700164","PAPP 2015/064","700164-PAPP 2015/064"]
["700165","PAPP 2015/065","700165-PAPP 2015/065"]
["700168","PAPP 2015/068","700168-PAPP 2015/068"]
["700170","PAPP 2015/070","700170-PAPP 2015/070"]
["700174","PAPP 2015/074","700174-PAPP 2015/074"]
["700176","PAPP 2015/076","700176-PAPP 2015/076"]
["700177","PAPP 2015/077","700177-PAPP 2015/077"]
["700179","PAPP 2015/079","700179-PAPP 2015/079"]
["700181","PAPP 2015/081","700181-PAPP 2015/081"]
["700183","PAPP 2015/083","700183-PAPP 2015/083"]
["700186","PAPP 2015/086","700186-PAPP 2015/086"]
["700193","PAPP 2015/093","700193-PAPP 2015/093"]
["700194","PAPP 2015/088","700194-PAPP 2015/088"]
["700195","PAPP2015/084","700195-PAPP2015/084"]
["700196","PAPP 2015/003","700196-PAPP 2015/003"]
["700197","PAPP2015/113","700197-PAPP2015/113"]
["700198","PAPP2015/111","700198-PAPP2015/111"]
["700199","PAPP2015/110","700199-PAPP2015/110"]
["7002","PROJETOS PAST","7002-PROJETOS PAST"]
["70020001","PAST2015/058","70020001-PAST2015/058"]
["70020002","PAST2015/060","70020002-PAST2015/060"]
["70020003","PAST2015/061","70020003-PAST2015/061"]
["70020004","PAST2015/062","70020004-PAST2015/062"]
["70020005","PAST2015/063","70020005-PAST2015/063"]
["70020006","PAST2015/065","70020006-PAST2015/065"]
["70020007","PAST2015/066","70020007-PAST2015/066"]
["700208","PAST 2015/008","700208-PAST 2015/008"]
["700209","PAST 2015/009","700209-PAST 2015/009"]
["700210","PAST 2015/010","700210-PAST 2015/010"]
["700211","PAST 2015/011","700211-PAST 2015/011"]
["700212","PAST 2015/012","700212-PAST 2015/012"]
["700213","PAST 2015/013","700213-PAST 2015/013"]
["700219","PAST 2015/019","700219-PAST 2015/019"]
["700220","PAST 2015/020",{"$f":"CONCATENATE(A707,\"-\",B707)","v":"700220-PAST 2015/020"}]
["700221","PAST 2015/021","700221-PAST 2015/021"]
["700222","PAST 2015/022","700222-PAST 2015/022"]
["700225","PAST 2015/025","700225-PAST 2015/025"]
["700231","PAST 2015/031","700231-PAST 2015/031"]
["700232","PAST 2015/032","700232-PAST 2015/032"]
["700236","PAST 2015/036","700236-PAST 2015/036"]
["700242","PAST 2015/042","700242-PAST 2015/042"]
["700243","PAST 2015/043","700243-PAST 2015/043"]
["700246","PAST 2015/046","700246-PAST 2015/046"]
["700248","PAST 2015/048","700248-PAST 2015/048"]
["700249","PAST 2015/049","700249-PAST 2015/049"]
["700251","PAST 2015/051","700251-PAST 2015/051"]
["700253","PAST 2015/053","700253-PAST 2015/053"]
["700255","PAST 2015/055","700255-PAST 2015/055"]
["700259","PAST 2015/059","700259-PAST 2015/059"]
["700264","PAST 2015/064","700264-PAST 2015/064"]
["700267","PAST 2015/067","700267-PAST 2015/067"]
["700268","PAST 2015/001","700268-PAST 2015/001"]
["700269","PAST 2015/002","700269-PAST 2015/002"]
["700270","PAST 2015/003","700270-PAST 2015/003"]
["700271","PAST 2015/004","700271-PAST 2015/004"]
["700272","PAST 2015/005","700272-PAST 2015/005"]
["700273","PAST 2015/006","700273-PAST 2015/006"]
["700274","PAST 2015/007","700274-PAST 2015/007"]
["700275","PAST 2015/014","700275-PAST 2015/014"]
["700276","PAST 2015/015","700276-PAST 2015/015"]
["700277","PAST 2015/016","700277-PAST 2015/016"]
["700278","PAST 2015/017","700278-PAST 2015/017"]
["700279","PAST 2015/018","700279-PAST 2015/018"]
["700280","PAST 2015/023","700280-PAST 2015/023"]
["700281","PAST 2015/024","700281-PAST 2015/024"]
["700282","PAST 2015/026","700282-PAST 2015/026"]
["700283","PAST 2015/027","700283-PAST 2015/027"]
["700284","PAST 2015/028","700284-PAST 2015/028"]
["700285","PAST 2015/029","700285-PAST 2015/029"]
["700286","PAST 2015/030","700286-PAST 2015/030"]
["700287","PAST 2015/033","700287-PAST 2015/033"]
["700288","PAST2015/034","700288-PAST2015/034"]
["700289","PAST2015/035","700289-PAST2015/035"]
["700290","PAST2015/037","700290-PAST2015/037"]
["700291","PAST2015/040","700291-PAST2015/040"]
["700292","PAST2015/041","700292-PAST2015/041"]
["700293","PAST2015/044","700293-PAST2015/044"]
["700294","PAST2015/045","700294-PAST2015/045"]
["700295","PAST2015/047","700295-PAST2015/047"]
["700296","PAST2015/050","700296-PAST2015/050"]
["700297","PAST2015/052","700297-PAST2015/052"]
["700298","PAST2015/054","700298-PAST2015/054"]
["700299","PAST2015/057","700299-PAST2015/057"]
["8001","PROJETOS INTERNOS","8001-PROJETOS INTERNOS"]
["80010001","PROJETO ENGENHARIAS - LABORATÓRIO DE FENÔMENOS DE TRANSPORTE - ZUY MARIA MAGRIOTIS","80010001-PROJETO ENGENHARIAS - LABORATÓRIO DE FENÔMENOS DE TRANSPORTE - ZUY MARIA MAGRIOTIS"]
["80010002","PROJETO ENGENHARIAS - OFICINA DE PROJETOS DE MATERIAIS - JULIANO ELVIS DE OLIVEIRA","80010002-PROJETO ENGENHARIAS - OFICINA DE PROJETOS DE MATERIAIS - JULIANO ELVIS DE OLIVEIRA"]
["80010003","PROJETO ENGENHARIAS - LABORATÓRIO DE DESENVOLVIMENTO DE PROJETOS (ENGENHARIA QUÍMICA) - ZUY MARIA MAGRIOTIS","80010003-PROJETO ENGENHARIAS - LABORATÓRIO DE DESENVOLVIMENTO DE PROJETOS (ENGENHARIA QUÍMICA) - ZUY MARIA MAGRIOTIS"]
["80010004","PROJETO ENGENHARIAS - LABORATORIO ISAAC ASIMOV - KAREN LUZ BURGOA ROSSO","80010004-PROJETO ENGENHARIAS - LABORATORIO ISAAC ASIMOV - KAREN LUZ BURGOA ROSSO"]
["80010005","CONSERVAÇÃO PREVENTIVA DE DOCUMENTOS DO CENTRO DE DOCUMENTAÇÃO E PESQUISAS HISTÓRICAS DA UFLA","80010005-CONSERVAÇÃO PREVENTIVA DE DOCUMENTOS DO CENTRO DE DOCUMENTAÇÃO E PESQUISAS HISTÓRICAS DA UFLA"]
["80010006","PROJETO PRESERVAÇÃO DO ACERVO ICONOGRÁFICO DO MUSEU BI MOREIRA","80010006-PROJETO PRESERVAÇÃO DO ACERVO ICONOGRÁFICO DO MUSEU BI MOREIRA"]
["80010007","REESTRUTURAÇÃO ADMINISTRATIVA E TÉCNICA DO MUSEU DE HISTÓRIA NATURAL DA UFLA","80010007-REESTRUTURAÇÃO ADMINISTRATIVA E TÉCNICA DO MUSEU DE HISTÓRIA NATURAL DA UFLA"]
["80010008","PROJETO EQUIPAMENTOS 2016 - DNU","80010008-PROJETO EQUIPAMENTOS 2016 - DNU"]
["80010009","PROJETO ANÁLISES DE ÁGUA 2016 - DEG","80010009-PROJETO ANÁLISES DE ÁGUA 2016 - DEG"]
["80010011","PROJETO CANTINA CENTRAL - CAFETERIA","80010011-PROJETO CANTINA CENTRAL - CAFETERIA"]
["80010012","SERRARIA - ARRECADAÇÕES GRU","80010012-SERRARIA - ARRECADAÇÕES GRU"]
["80010013","COORDENAÇÃO GERAL PIBID","80010013-COORDENAÇÃO GERAL PIBID"]
["80010014","DESENVOLVIMENTO SUSTENTÁVEL DA OVINOCAPRINOCULTURA","80010014-DESENVOLVIMENTO SUSTENTÁVEL DA OVINOCAPRINOCULTURA"]
["80010015","PROJETO NOVOS CURSOS - ABI ENGENHARIAS",{"$f":"CONCATENATE(A771,\"-\",B771)","v":"80010015-PROJETO NOVOS CURSOS - ABI ENGENHARIAS"}]
["80010016","PROJETO NOVOS CURSOS - ENGENHARIA CIVIL","80010016-PROJETO NOVOS CURSOS - ENGENHARIA CIVIL"]
["80010017","PROJETO NOVOS CURSOS - ENGENHARIA DE CONTROLE E AUTOMAÇÃO","80010017-PROJETO NOVOS CURSOS - ENGENHARIA DE CONTROLE E AUTOMAÇÃO"]
["80010018","PROJETO NOVOS CURSOS - ENGENHARIA DE MATERIAIS","80010018-PROJETO NOVOS CURSOS - ENGENHARIA DE MATERIAIS"]
["80010019","PROJETO NOVOS CURSOS - ENGENHARIA MECÂNICA","80010019-PROJETO NOVOS CURSOS - ENGENHARIA MECÂNICA"]
["80010020","PROJETO NOVOS CURSOS - ENGENHARIA QUÍMICA","80010020-PROJETO NOVOS CURSOS - ENGENHARIA QUÍMICA"]
["80010021","PROJETO NOVOS CURSOS - FISIOLOGIA VEGETAL","80010021-PROJETO NOVOS CURSOS - FISIOLOGIA VEGETAL"]
["80010022","PROJETO NOVOS CURSOS - MEDICINA","80010022-PROJETO NOVOS CURSOS - MEDICINA"]
["80010023","PROJETO NOVOS CURSOS - VETERINÁRIA","80010023-PROJETO NOVOS CURSOS - VETERINÁRIA"]
["80010024","PROJETO NOVOS CURSOS - MICROBIOLOGIA","80010024-PROJETO NOVOS CURSOS - MICROBIOLOGIA"]
["800101","PROJETO PROEXT - MARIA EMILIA","800101-PROJETO PROEXT - MARIA EMILIA"]
["800102","PROJETO PROEXT - JOSE ROBERTO","800102-PROJETO PROEXT - JOSE ROBERTO"]
["800103","PROJETO PROEXT - CLAUDIA/VANDERLEI","800103-PROJETO PROEXT - CLAUDIA/VANDERLEI"]
["800104","PROJETO PROEXT - WAGNER","800104-PROJETO PROEXT - WAGNER"]
["800105","PROJETO EMBRAPA CAFÉ","800105-PROJETO EMBRAPA CAFÉ"]
["80010501","PROJETO EMBRAPA CAFÉ - ADENILSON HENRIQUE GONÇALVES","80010501-PROJETO EMBRAPA CAFÉ - ADENILSON HENRIQUE GONÇALVES"]
["80010502","PROJETO EMBRAPA CAFÉ - ALBERTO COLOMBO","80010502-PROJETO EMBRAPA CAFÉ - ALBERTO COLOMBO"]
["80010503","PROJETO EMBRAPA CAFÉ - ANTÔNIO NAZARENO GUIMARÃES MENDES","80010503-PROJETO EMBRAPA CAFÉ - ANTÔNIO NAZARENO GUIMARÃES MENDES"]
["80010504","PROJETO EMBRAPA CAFÉ - CIBELE MARIA GARCIA AGUIAR","80010504-PROJETO EMBRAPA CAFÉ - CIBELE MARIA GARCIA AGUIAR"]
["80010505","PROJETO EMBRAPA CAFÉ - EDUARDO ALVES","80010505-PROJETO EMBRAPA CAFÉ - EDUARDO ALVES"]
["80010506","PROJETO EMBRAPA CAFÉ - EVARISTO MAURO DE CASTRO","80010506-PROJETO EMBRAPA CAFÉ - EVARISTO MAURO DE CASTRO"]
["80010507","PROJETO EMBRAPA CAFÉ - FLÁVIO MEIRA BORÉM","80010507-PROJETO EMBRAPA CAFÉ - FLÁVIO MEIRA BORÉM"]
["80010508","PROJETO EMBRAPA CAFÉ - GERALDO CÉSAR DE OLIVEIRA","80010508-PROJETO EMBRAPA CAFÉ - GERALDO CÉSAR DE OLIVEIRA"]
["80010509","PROJETO EMBRAPA CAFÉ - JOÃO PAULO R. A. DELFINO BARBOSA","80010509-PROJETO EMBRAPA CAFÉ - JOÃO PAULO R. A. DELFINO BARBOSA"]
["80010510","PROJETO EMBRAPA CAFÉ - LUIS CLÁUDIO PATERNO SILVEIRA","80010510-PROJETO EMBRAPA CAFÉ - LUIS CLÁUDIO PATERNO SILVEIRA"]
["80010511","PROJETO EMBRAPA CAFÉ - LUIZ GONZAGA CASTRO JÚNIOR","80010511-PROJETO EMBRAPA CAFÉ - LUIZ GONZAGA CASTRO JÚNIOR"]
["80010512","PROJETO EMBRAPA CAFÉ - MARCELO MÁRCIO ROMANIELLO","80010512-PROJETO EMBRAPA CAFÉ - MARCELO MÁRCIO ROMANIELLO"]
["80010513","PROJETO EMBRAPA CAFÉ - MARCO AURÉLIO CARBONE CARNEIRO","80010513-PROJETO EMBRAPA CAFÉ - MARCO AURÉLIO CARBONE CARNEIRO"]
["80010514","PROJETO EMBRAPA CAFÉ - MÁRIO CÉSAR GUERREIRO","80010514-PROJETO EMBRAPA CAFÉ - MÁRIO CÉSAR GUERREIRO"]
["80010515","PROJETO EMBRAPA CAFÉ - MOACIR DE SOUZA DIAS JÚNIOR","80010515-PROJETO EMBRAPA CAFÉ - MOACIR DE SOUZA DIAS JÚNIOR"]
["80010516","PROJETO EMBRAPA CAFÉ - RENATO PAIVA","80010516-PROJETO EMBRAPA CAFÉ - RENATO PAIVA"]
["80010517","PROJETO EMBRAPA CAFÉ - ROSEMARY G. F. A. PEREIRA","80010517-PROJETO EMBRAPA CAFÉ - ROSEMARY G. F. A. PEREIRA"]
["80010518","PROJETO EMBRAPA CAFÉ - RUBENS JOSÉ GUIMARÃES","80010518-PROJETO EMBRAPA CAFÉ - RUBENS JOSÉ GUIMARÃES"]
["80010519","PROJETO EMBRAPA CAFÉ - SAMUEL PEREIRA DE CARVALHO","80010519-PROJETO EMBRAPA CAFÉ - SAMUEL PEREIRA DE CARVALHO"]
["80010520","PROJETO EMBRAPA CAFÉ - DOUGLAS RAMOS GUELFI","80010520-PROJETO EMBRAPA CAFÉ - DOUGLAS RAMOS GUELFI"]
["80010521","PROJETO EMBRAPA CAFÉ - PAULO HENRIQUE M V LEME","80010521-PROJETO EMBRAPA CAFÉ - PAULO HENRIQUE M V LEME"]
["800106","PROJETO CADASTRO AMBIENTAL RURAL - CAR/LEMAF","800106-PROJETO CADASTRO AMBIENTAL RURAL - CAR/LEMAF"]
["800107","PROJETO PETI - ADMINISTRAÇÃO PÚBLICA","800107-PROJETO PETI - ADMINISTRAÇÃO PÚBLICA"]
["800108","PROJETO PETI - AMBIENTAL","800108-PROJETO PETI - AMBIENTAL"]
["800109","PROJETO PETI - BIOLOGIA PARASITÁRIA","800109-PROJETO PETI - BIOLOGIA PARASITÁRIA"]
["800110","PROJETO PETI - COMPUTAÇÃO","800110-PROJETO PETI - COMPUTAÇÃO"]
["800111","PROJETO PETI - DIREITO","800111-PROJETO PETI - DIREITO"]
["800112","PROJETO PETI - ENGENHARIA E CONTROLE E AUTOMAÇÃO","800112-PROJETO PETI - ENGENHARIA E CONTROLE E AUTOMAÇÃO"]
["800113","PROJETO PETI - FLORESTAL","800113-PROJETO PETI - FLORESTAL"]
["800114","PROJETO PETI - LICENCIATURAS","800114-PROJETO PETI - LICENCIATURAS"]
["800115","PROJETO PROMEC - ALIMENTOS","800115-PROJETO PROMEC - ALIMENTOS"]
["800116","PROJETO PROMEC - AMBIENTAL","800116-PROJETO PROMEC - AMBIENTAL"]
["800117","PROJETO PROMEC - FILOSOFIA","800117-PROJETO PROMEC - FILOSOFIA"]
["800118","PROJETO PROMEC - LETRAS","800118-PROJETO PROMEC - LETRAS"]
["800119","PROJETO PROMEC - MATEMATICA","800119-PROJETO PROMEC - MATEMATICA"]
["800120","PROJETO PROMEC - NUTRIÇÃO","800120-PROJETO PROMEC - NUTRIÇÃO"]
["800121","PROJETO PROEXT - ELAINE FRADE","800121-PROJETO PROEXT - ELAINE FRADE"]
["800122","PROJETO REVISTA CERNE","800122-PROJETO REVISTA CERNE"]
["800123","PROJETO PROMEC II - CRISTINA MENDONÇA","800123-PROJETO PROMEC II - CRISTINA MENDONÇA"]
["800124","PROJETO PROMEC II - DANY FLAVIO","800124-PROJETO PROMEC II - DANY FLAVIO"]
["800125","PROJETO PROMEC II - DENIS DE OLIVEIRA","800125-PROJETO PROMEC II - DENIS DE OLIVEIRA"]
["800126","PROJETO PROMEC II - SABRINA SOARES","800126-PROJETO PROMEC II - SABRINA SOARES"]
["800127","PROJETO PROMEC II - ANTONIO DECARLOS","800127-PROJETO PROMEC II - ANTONIO DECARLOS"]
["800128","PROJETO PROMEC II - GIOVANA TORRES","800128-PROJETO PROMEC II - GIOVANA TORRES"]
["800129","PROJETO PROMEC II - ITAMAR FERREIRA","800129-PROJETO PROMEC II - ITAMAR FERREIRA"]
["800130","PROJETO PROMEC II - JULIO LOUZADA","800130-PROJETO PROMEC II - JULIO LOUZADA"]
["800131","PROJETO PROMEC II - HEITOR AUGUSTUS XAVIER COSTA","800131-PROJETO PROMEC II - HEITOR AUGUSTUS XAVIER COSTA"]
["800132","PROJETO PROMEC II - JOÃO GIACOMIN","800132-PROJETO PROMEC II - JOÃO GIACOMIN"]
["800133","PROJETO PROMEC II - ISABELA NEVES","800133-PROJETO PROMEC II - ISABELA NEVES"]
["800134","PROJETO PROMEC II - MARCO ANTÔNIO BARBOSA",{"$f":"CONCATENATE(A835,\"-\",B835)","v":"800134-PROJETO PROMEC II - MARCO ANTÔNIO BARBOSA"}]
["800135","PROJETO PROMEC II - FREDERICO FAÚLA","800135-PROJETO PROMEC II - FREDERICO FAÚLA"]
["800136","PROJETO PROMEC II - DEVANIL JAQUES","800136-PROJETO PROMEC II - DEVANIL JAQUES"]
["800137","PROJETO PROMEC II - IRAZIET DA CUNHA","800137-PROJETO PROMEC II - IRAZIET DA CUNHA"]
["800138","PROJETO PROMEC II - JERRY CARVALHO","800138-PROJETO PROMEC II - JERRY CARVALHO"]
["800139","PROJETO PROMEC II - FLAMARION TENÓRIO","800139-PROJETO PROMEC II - FLAMARION TENÓRIO"]
["800140","PROJETO PROMEC II - BRUNO MONTEIRO","800140-PROJETO PROMEC II - BRUNO MONTEIRO"]
["800141","PROJETO PROMEC II - FABIANO MAGALHÃES","800141-PROJETO PROMEC II - FABIANO MAGALHÃES"]
["800142","PROJETO PROMEC II - ANA PAULA MELCHIORI","800142-PROJETO PROMEC II - ANA PAULA MELCHIORI"]
["800143","PROJETO PROMEC II - JOAQUIM UCHÔA","800143-PROJETO PROMEC II - JOAQUIM UCHÔA"]
["800144","PROJETO PROMEC II - MARIA DAS GRAÇAS CARVALHO","800144-PROJETO PROMEC II - MARIA DAS GRAÇAS CARVALHO"]
["800145","PROJETO PROMEC II - RONY FERREIRA","800145-PROJETO PROMEC II - RONY FERREIRA"]
["800146","PROJETO ENGENHARIAS","800146-PROJETO ENGENHARIAS"]
["800147","PROJETO ENGENHARIAS - ITENS ABI ENGENHARIA","800147-PROJETO ENGENHARIAS - ITENS ABI ENGENHARIA"]
["800149","PROJETO ENGENHARIAS - LABORATÓRIO DE DESENHO TÉCNICO - ANDRÉ LUIZ ZANGIÁCOMO","800149-PROJETO ENGENHARIAS - LABORATÓRIO DE DESENHO TÉCNICO - ANDRÉ LUIZ ZANGIÁCOMO"]
["800150","PROJETO ENGENHARIAS - LABORATÓRIO DE ELETRÔNICA - WILIAN SOARES LACERDA","800150-PROJETO ENGENHARIAS - LABORATÓRIO DE ELETRÔNICA - WILIAN SOARES LACERDA"]
["800151","PROJETO ENGENHARIAS - LABORATÓRIO DE ESTRUTURAS - ANDRÉ LUIZ ZANGIÁCOMO","800151-PROJETO ENGENHARIAS - LABORATÓRIO DE ESTRUTURAS - ANDRÉ LUIZ ZANGIÁCOMO"]
["800152","PROJETO ENGENHARIAS - LABORATÓRIOS GALILEU E ARQUIMEDES (FÍSICA A) - KAREN LUZ BURGOA ROSSO","800152-PROJETO ENGENHARIAS - LABORATÓRIOS GALILEU E ARQUIMEDES (FÍSICA A) - KAREN LUZ BURGOA ROSSO"]
["800153","PROJETO ENGENHARIAS - LABORATÓRIOS KELVIN E BERNOULLI (FÍSICA B) - KAREN LUZ BURGOA ROSSO","800153-PROJETO ENGENHARIAS - LABORATÓRIOS KELVIN E BERNOULLI (FÍSICA B) - KAREN LUZ BURGOA ROSSO"]
["800154","PROJETO ENGENHARIAS - LABORATÓRIO DE GEOMÁTICA - ANDRÉ GERALDO CORNÉLIO RIBEIRO","800154-PROJETO ENGENHARIAS - LABORATÓRIO DE GEOMÁTICA - ANDRÉ GERALDO CORNÉLIO RIBEIRO"]
["800155","PROJETO ENGENHARIAS - LABORATÓRIO DE QUÍMICA GERAL EXPERIMENTAL - ZUY MARIA MAGRIOTIS","800155-PROJETO ENGENHARIAS - LABORATÓRIO DE QUÍMICA GERAL EXPERIMENTAL - ZUY MARIA MAGRIOTIS"]
["800156","PROJETO ENGENHARIAS - OFICINA DE MECÂNICA - CARLOS EDUARDO SILVA VOLPATO","800156-PROJETO ENGENHARIAS - OFICINA DE MECÂNICA - CARLOS EDUARDO SILVA VOLPATO"]
["800157","PROJETO ENGENHARIAS - OFICINA DE PROJETOS EM ENGENHARIA MECÂNICA A - JOAO CHRYSOSTOMO DE RESENDE JUNIOR","800157-PROJETO ENGENHARIAS - OFICINA DE PROJETOS EM ENGENHARIA MECÂNICA A - JOAO CHRYSOSTOMO DE RESENDE JUNIOR"]
["800160","PROJETO ENGENHARIAS - SALA PARA PRÁTICA DE DESENHO - ANDRÉ LUIZ ZANGIÁCOMO","800160-PROJETO ENGENHARIAS - SALA PARA PRÁTICA DE DESENHO - ANDRÉ LUIZ ZANGIÁCOMO"]
["800161","PROJETO ENGENHARIAS - SALA DOS SERVIDORES COMPUTACIONAIS - JOAQUIM QUINTEIRO UCHOA","800161-PROJETO ENGENHARIAS - SALA DOS SERVIDORES COMPUTACIONAIS - JOAQUIM QUINTEIRO UCHOA"]
["800162","PROJETO ENGENHARIAS - LABORATÓRIO DE CONSTRUÇÃO CIVIL - ANDRÉ LUIZ ZANGIÁCOMO","800162-PROJETO ENGENHARIAS - LABORATÓRIO DE CONSTRUÇÃO CIVIL - ANDRÉ LUIZ ZANGIÁCOMO"]
["800163","PROJETO ENGENHARIAS - LABORATÓRIO DE CIRCUITOS ELETRICOS - WILIAN SOARES LACERDA","800163-PROJETO ENGENHARIAS - LABORATÓRIO DE CIRCUITOS ELETRICOS - WILIAN SOARES LACERDA"]
["800164","PROJETO ENGENHARIAS - LABORATÓRIO DE DESENHO ASSISTIDO POR COMPUTADOR - ANDRÉ LUIZ ZANGIÁCOMO","800164-PROJETO ENGENHARIAS - LABORATÓRIO DE DESENHO ASSISTIDO POR COMPUTADOR - ANDRÉ LUIZ ZANGIÁCOMO"]
["800165","PROJETO ENGENHARIAS - LABORATÓRIO DE COMPUTAÇÃO - JOAQUIM QUINTEIRO UCHOA","800165-PROJETO ENGENHARIAS - LABORATÓRIO DE COMPUTAÇÃO - JOAQUIM QUINTEIRO UCHOA"]
["800166","PROJETO ENGENHARIAS - LABORATÓRIO DE MATERIAIS CONJUGADOS - SÉRGIO MARTINS DE SOUZA","800166-PROJETO ENGENHARIAS - LABORATÓRIO DE MATERIAIS CONJUGADOS - SÉRGIO MARTINS DE SOUZA"]
["800167","PROJETO ENGENHARIAS - LABORATÓRIO LEONARDO DA VINCI (OFICINA 1 DE PROJETOS DE FÍSICA) - KAREN LUZ BURGOA ROSSO","800167-PROJETO ENGENHARIAS - LABORATÓRIO LEONARDO DA VINCI (OFICINA 1 DE PROJETOS DE FÍSICA) - KAREN LUZ BURGOA ROSSO"]
["800168","PROJETO ENGENHARIAS - LABORATORIO MICHAEL FARADAY (OFICINA 2 DE PROJETOS DE FÍSICA) - KAREN LUZ BURGOA ROSSO","800168-PROJETO ENGENHARIAS - LABORATORIO MICHAEL FARADAY (OFICINA 2 DE PROJETOS DE FÍSICA) - KAREN LUZ BURGOA ROSSO"]
["800169","PROJETO ENGENHARIAS - LABORATORIO SANTOS DUMONT (OFICINA 1 DE PROJETOS DE FÍSICA) - KAREN LUZ BURGOA ROSSO","800169-PROJETO ENGENHARIAS - LABORATORIO SANTOS DUMONT (OFICINA 1 DE PROJETOS DE FÍSICA) - KAREN LUZ BURGOA ROSSO"]
["800170","PROJETO ENGENHARIAS - LABORATÓRIO DE INSTALAÇÕES ELÉTRICAS - WILIAN SOARES LACERDA","800170-PROJETO ENGENHARIAS - LABORATÓRIO DE INSTALAÇÕES ELÉTRICAS - WILIAN SOARES LACERDA"]
["800171","PROJETO ENGENHARIAS - LABORATÓRIO DE BIOMATERIAIS - LOURIVAL MARINS MENDES","800171-PROJETO ENGENHARIAS - LABORATÓRIO DE BIOMATERIAIS - LOURIVAL MARINS MENDES"]
["800172","DCC/MEC BERMEJO","800172-DCC/MEC BERMEJO"]
["800173","INGLÊS SEM FRONTEIRAS","800173-INGLÊS SEM FRONTEIRAS"]
["800174","PROJETO - FUNDAÇÃO DE DESENVOLVIMENTO CIENTÍFICO E CULTURAL/FUNDECC","800174-PROJETO - FUNDAÇÃO DE DESENVOLVIMENTO CIENTÍFICO E CULTURAL/FUNDECC"]
["800175","EPAMIG","800175-EPAMIG"]
["800176","PROJETO PROEXT - LUIZ ROBERTO TAKAYAMA","800176-PROJETO PROEXT - LUIZ ROBERTO TAKAYAMA"]
["800177","PROJETO PROEXT - THIAGO RODRIGO","800177-PROJETO PROEXT - THIAGO RODRIGO"]
["800178","PROJETO PROEXT - CLÁUDIA MARIA RIBEIRO","800178-PROJETO PROEXT - CLÁUDIA MARIA RIBEIRO"]
["800179","MAPA/DZO","800179-MAPA/DZO"]
["800180","PROJETO ENGENHARIA DE CONTROLE E AUTOMAÇÃO","800180-PROJETO ENGENHARIA DE CONTROLE E AUTOMAÇÃO"]
["800181","PROMEC III - CAROLINA VALERIANO DE CARVALHO","800181-PROMEC III - CAROLINA VALERIANO DE CARVALHO"]
["800182","PROMEC III - CELSO VALLIN","800182-PROMEC III - CELSO VALLIN"]
["800183","PROMEC III - DANIEL AUGUSTO PEREIRA","800183-PROMEC III - DANIEL AUGUSTO PEREIRA"]
["800184","PROMEC III - EMANUELE TREDANARO","800184-PROMEC III - EMANUELE TREDANARO"]
["800185","PROMEC III - FLÁVIO ALVES DAMASCENO","800185-PROMEC III - FLÁVIO ALVES DAMASCENO"]
["800186","PROMEC III - ILSA GOULART","800186-PROMEC III - ILSA GOULART"]
["800187","PROMEC III - JOÃO BOSCO FILHO","800187-PROMEC III - JOÃO BOSCO FILHO"]
["800188","PROMEC III - LÉA CARNEIRO SILVEIRA","800188-PROMEC III - LÉA CARNEIRO SILVEIRA"]
["800189","PROMEC III - LÍVIA GARCIA FERREIRA","800189-PROMEC III - LÍVIA GARCIA FERREIRA"]
["800190","PROMEC III - MÁRCIO ANDRÉ LARA","800190-PROMEC III - MÁRCIO ANDRÉ LARA"]
["800191","PROMEC III - MARIA DA GLÓRIA MESQUITA","800191-PROMEC III - MARIA DA GLÓRIA MESQUITA"]
["800192","PROMEC III - MARIA LÚCIA BIANCHI","800192-PROMEC III - MARIA LÚCIA BIANCHI"]
["800193","PROMEC III - NORMA JOSEPH","800193-PROMEC III - NORMA JOSEPH"]
["800194","PROMEC III - PAULO HEIN","800194-PROMEC III - PAULO HEIN"]
["800195","PROMEC III - PRISCILA CARNEIRO VALIM","800195-PROMEC III - PRISCILA CARNEIRO VALIM"]
["800196","PROMEC III - RENATO ELIAS FONTES","800196-PROMEC III - RENATO ELIAS FONTES"]
["800197","PROJETO PAVILHÃO 8 DE AULAS","800197-PROJETO PAVILHÃO 8 DE AULAS"]
["800198","PROJETO ENGENHARIAS - LABORATÓRIO DE GEOTÉCNICA E PAVIMENTAÇÃO - ANDRÉ LUIZ ZANGIÁCOMO","800198-PROJETO ENGENHARIAS - LABORATÓRIO DE GEOTÉCNICA E PAVIMENTAÇÃO - ANDRÉ LUIZ ZANGIÁCOMO"]
["800199","PROJETO ENGENHARIAS - OFICINA DE PROJETOS DE ENGENHARIA CIVIL - ANDRÉ LUIZ ZANGIÁCOMO","800199-PROJETO ENGENHARIAS - OFICINA DE PROJETOS DE ENGENHARIA CIVIL - ANDRÉ LUIZ ZANGIÁCOMO"]
["8002","ORGÃOS ANEXOS UFLA","8002-ORGÃOS ANEXOS UFLA"]
["800201","ALUNOS DE PÓS-GRADUAÇÃO DA UFLA - PRPG",{"$f":"CONCATENATE(A899,\"-\",B899)","v":"800201-ALUNOS DE PÓS-GRADUAÇÃO DA UFLA - PRPG"}]
["800202","ALUNOS DE GRADUAÇÃO DA UFLA - PRG","800202-ALUNOS DE GRADUAÇÃO DA UFLA - PRG"]
["8003","PROMESSAS REITORIA","8003-PROMESSAS REITORIA"]
["800301","INSTITUCIONAL 2015 DEPARTAMENTO DE CIÊNCIA DA COMPUTAÇÃO","800301-INSTITUCIONAL 2015 DEPARTAMENTO DE CIÊNCIA DA COMPUTAÇÃO"]